{"text_format":"2","workbook":"xlsx","n_sheets":3,"sheets":["Pre-Approval Form","Tables","Apr13Update"],"not_rendered":{"charts":0,"images":0,"macros":0,"external_links":0,"defined_names":9,"comments":0,"pivot_tables":0},"unopened":[],"bounds":{"document_bytes":16777216,"sheet_cells":100000,"run_cost":"one","rows_first":2000,"rows_last":500,"rows_between":2000,"halvings":0,"cell_chars":16384,"cell_head_chars":4096},"cells_cut":0,"cells_raw":0,"read":"whole","date_system":"1900"}

{"sheet":"Pre-Approval Form","index":0,"n_rows":70,"n_cols":18,"rows_kept":70,"cut":false,"hidden":false,"merged":[[69,7,69,8],[69,9,69,13],[65,1,65,13],[66,1,66,3],[66,4,66,13],[67,1,67,3],[67,4,67,9],[67,11,67,13],[62,1,62,2],[62,3,62,6],[62,7,62,8],[62,9,62,13],[63,1,63,2],[63,3,63,6],[63,7,63,8],[63,9,63,13],[58,1,58,3],[58,4,58,13],[59,1,59,3],[59,4,59,9],[59,11,59,13],[61,1,61,13],[55,1,55,13],[56,1,56,3],[56,4,56,13],[57,1,57,3],[57,4,57,9],[57,11,57,13],[43,2,43,5],[43,7,43,8],[43,12,43,13],[44,2,44,3],[44,4,44,5],[44,6,44,9],[44,10,44,11],[44,12,44,13],[39,1,39,13],[40,2,40,5],[40,7,40,8],[40,12,40,13],[41,2,41,3],[41,4,41,5],[41,6,41,9],[41,10,41,11],[41,12,41,13],[35,1,35,13],[36,1,36,2],[36,3,36,6],[36,7,36,8],[36,9,36,13],[38,1,38,13],[30,1,30,2],[30,3,30,5],[30,6,30,7],[30,8,30,9],[30,10,30,13],[31,6,31,7],[31,8,31,9],[31,10,31,11],[31,12,31,13],[33,1,33,13],[28,1,28,2],[28,3,28,5],[28,6,28,7],[28,8,28,9],[28,10,28,13],[29,1,29,2],[29,3,29,5],[29,6,29,7],[29,8,29,9],[29,10,29,13],[26,1,26,5],[26,6,26,7],[26,8,26,9],[26,10,26,13],[27,1,27,5],[27,6,27,7],[27,8,27,9],[27,10,27,13],[24,1,24,5],[24,6,24,7],[24,8,24,9],[24,10,24,13],[25,1,25,5],[25,6,25,7],[25,8,25,9],[25,10,25,13],[22,1,22,5],[22,6,22,7],[22,8,22,9],[22,10,22,13],[23,1,23,5],[23,6,23,7],[23,8,23,9],[23,10,23,13],[16,7,16,13],[21,1,21,5],[21,6,21,7],[21,8,21,9],[21,10,21,13],[11,17,11,23],[12,1,12,2],[12,3,12,6],[12,7,12,8],[12,9,12,13],[13,1,13,2],[13,3,13,6],[13,7,13,8],[13,9,13,13],[5,7,5,11],[5,12,5,13],[6,1,6,13],[7,1,7,2],[7,3,7,6],[7,7,7,8],[7,9,7,13],[8,1,8,2],[8,3,8,6],[8,7,8,8],[8,9,8,13],[46,2,46,5],[46,7,46,8],[46,12,46,13],[47,2,47,3],[47,4,47,5],[47,6,47,9],[47,10,47,11],[47,12,47,13],[10,1,10,13],[11,1,11,2],[11,3,11,6],[11,7,11,8],[11,9,11,13],[14,1,14,3],[14,4,14,6],[14,7,14,8],[17,4,19,13],[16,1,16,3],[16,4,16,6],[14,9,14,13],[15,1,15,3],[15,4,15,6],[15,7,15,9],[15,10,15,13],[52,2,52,5],[52,7,52,8],[52,12,52,13],[53,2,53,3],[53,4,53,5],[53,6,53,9],[53,10,53,11],[53,12,53,13],[49,12,49,13],[49,2,49,5],[49,7,49,8],[50,2,50,3],[50,4,50,5],[50,6,50,9],[50,10,50,11],[50,12,50,13]]}
[]
[]
[]
[]
[]
[null,"Green cells are drop down cells and yellow cells are entry cells",{"$nulls":5},"Trip Number (Assigned by Financial Services)"]
[null,"Employee Information"]
[null,"Employee Name",{"$nulls":5},"Position"]
[null,"Employee Number",{"$nulls":5},"Phone Extension"]
[]
[null,"Trip Details ( if attending conference/course attach itinerary)"]
[null,"Destination",{"$nulls":5},"Departure Date",{"$nulls":9}," "]
[null,"Purpose of Trip",{"$nulls":5},"Return Date"]
[null,"Name of Conference ",{"$nulls":5},"Date of Conference"]
[null,"Planned Departure Time",{"$nulls":5},"Planned Return Time"]
[null,"Any portion of trip personal?",{"$nulls":5},"Date of Personal Travel"]
[null,"If Foreign Travel, travel advisory checked",{"$nulls":5},"https://travel.gc.ca/travelling/advisories"]
[null,"Additional Information/Notes:"]
[]
[]
[]
[null,"Estimated Travel Costs",{"$nulls":4},"Estimated Cost",null,"Personal Portion",null,"Anticipated Payment Method"]
[null,"Airfare"]
[null,"Accommodations"]
[null,"Per Diems (see below)"]
[null,"Ground Transportation"]
[null,"Personal Vehicle/Mileage ($0.55/km)"]
[null,"Conference/Course Registration"]
[null,"Other (Specify)"]
[null,"Other (Specify)"]
[null,"Other (Specify)"]
[null,"Totals",{"$nulls":4},{"$f":"+SUM(G23:H31)","v":0},null,{"$f":"+SUM(I23:J31)","v":0},null,{"$f":"+G32-I32","v":0},null,"Business Portion"]
[null,"Per Diem and Incidental Rates - Breakfast- $22,   Lunch- $22 ,  Dinner- $28.50,  Incidentals - $14.00/24 Hour Period"]
[null,"See Business and Travel Expense Rate Schedule for additional information on claiming meals per diems and incidentals"]
[]
[null,"Travel Approval Signature (Supervisor, to allow travel)"]
[null,"Supervisor's Name",{"$nulls":5},"Supervisor's Signature"]
[]
[null,"Cost Centre Information "]
[null,"Note - Total Dollars allocated to all cost centers should agree to Business Portion above"]
[null,"Acct 1","Account",{"$nulls":4},"Split  Based On",null,"%",null,"Enter $ or %"]
[null,"CC #","?",null,"CC  Name",null,{"$f":"VLOOKUP($C$42,tbl_costCentres[],2,FALSE)","v":"?"},null,null,null,"    Sub CC"]
[]
[null,"Acct 2","Account",{"$nulls":4},"Split  Based On",null,"%",null,"Enter $ or %"]
[null,"CC #","?",null,"CC  Name",null,{"$f":"VLOOKUP($C$45,tbl_costCentres[],2,FALSE)","v":"?"},null,null,null,"    Sub CC"]
[]
[null,"Acct 3","Account",{"$nulls":4},"Split  Based On",null,"%",null,"Enter $ or %"]
[null,"CC #","?",null,"CC  Name",null,{"$f":"VLOOKUP($C$48,tbl_costCentres[],2,FALSE)","v":"?"},null,null,null,"    Sub CC"]
[]
[null,"Acct 4","Account",{"$nulls":4},"Split  Based On",null,"%",null,"Enter $ or %"]
[null,"CC #","?",null,"CC  Name",null,{"$f":"VLOOKUP($C$51,tbl_costCentres[],2,FALSE)","v":"?"},null,null,null,"    Sub CC"]
[]
[null,"Acct 5","Account",{"$nulls":4},"Split  Based On",null,"%",null,"Enter $ or %"]
[null,"CC #","?",null,"CC  Name",null,{"$f":"VLOOKUP($C$54,tbl_costCentres[],2,FALSE)","v":"?"},null,null,null,"    Sub CC"]
[]
[null,"Spending Authority Approvals (Budget holder, to allow expenses)"]
[null,"Spending Authority Name Acct #1"]
[null,"Spending Authority Signature Acct #1",null,null," ",{"$nulls":5},"Date"]
[null,"Spending Authority Name Acct #2"]
[null,"Spending Authority Signature Acct #2",{"$nulls":8},"Date"]
[]
[null,"Travel Advance Information (if applicable - See Section 12 of the Business Travel Expense Directive)"]
[null,"Amount",{"$nulls":5},"Reason for Request"]
[null,"Approver Name",{"$nulls":5},"Approver Signature"]
[]
[null,"Approval for Travel Outside of Canada (see Section 3 of the Business Travel Expense Directive)"]
[null,"Name"]
[null,"Signature",{"$nulls":8},"Date"]
[]
[{"$nulls":7},"Traveler's Signature"]

{"sheet":"Tables","index":1,"n_rows":462,"n_cols":6,"rows_kept":462,"cut":false,"hidden":true,"merged":[]}
["Purpose of Trip",null,"Account",null,"Cost Centre","Name"]
[null,null,"61400 - Travel",null,"?","?"]
["Student Recruitment",null,"61740 - Student Recruitment Travel",null,101000,"Board of Governors"]
["Conference",null,"23005 - Faculty Personal ProD",null,101500,"Board and Administrative Services"]
["Research",null,"23010 - Faculty Pooled ProD",null,102500,"President's Office"]
["Course/Professional Development",null,"23007 - Academic Admin Supplement",null,104000,"Financial Planning"]
["Advancement",null,"23011 - Internal Research Grant",null,104110,"Additions to March 31, 2017"]
["Governance",null,"22054 - Research Allowance",null,104120,"Additions: Apr 1 17 to Mar 31 18"]
["Working Out of Province/Country",null,"61750 - Student Recruitment Events",null,104700,"Classroom Scheduling Project"]
["Other",null,"61731 - Travel - Business Development",null,104781,"Nixon Building"]
[null,null,"62227 - Program Delivery:  Field Trips",null,104852,"Nixon Water Main Repair"]
[{"$nulls":4},104892,"Campus Electrical Intrastructure Upgrades"]
["Misc",null,null,null,104996,"Corp Cost Centre ACA - Non Capital"]
["Yes",null,"Payment Method",null,104997,"Donor Projects - non capital"]
["No",null,"?",null,104998,"Corp Cost Centre - Prov Minor Maintenance"]
["N/A",null,"Individual will pay and submit expense claim",null,104999,"Corp Cost Centre - Capital"]
["?",null,"Individual will pay - no expense to RRU",null,105000,"VP Finance and Operations"]
[null,null,"Individual will pay and be reimbursed by external source",null,105200,"Data Governance"]
[null,null,"Expense invoiced directly to RRU",null,106000,"Advancement"]
["Dollars or Percent",null,"Expense charged to RRU corporate credit card",null,106005,"Foundation Capital Campaign"]
["$",null,null,null,106200,"Alumni Relations"]
["%",null,null,null,107001,"Filming"]
[{"$nulls":4},107600,"Operations and Resilience"]
[{"$nulls":4},120000,"Human Resources"]
["Travel",null,null,null,120005,"HR - Centralized Funds"]
[{"$nulls":4},120010,"HR Corporate"]
[{"$nulls":4},120160,"Faculty Pro-D Pool"]
[{"$nulls":4},130000,"Financial Services"]
[{"$nulls":4},130010,"Finance Corporate"]
[{"$nulls":4},130011,"Cascade"]
[{"$nulls":4},130012,"Commercial Rental (Cedar)"]
[{"$nulls":4},130500,"Financial Reporting and Compliance"]
[{"$nulls":4},140000,"Campus Operations Administration"]
[{"$nulls":4},141000,"Maintenance Operations"]
[{"$nulls":4},141900,"Enterprise Utilities"]
[{"$nulls":4},142000,"Gardens & Grounds"]
[{"$nulls":4},143000,"Custodial/Housekeeping"]
[{"$nulls":4},145000,"Security & Assistance Services"]
[{"$nulls":4},145100,"Parking"]
[{"$nulls":4},146073,"2003/04 ACA Millward Structural Deficen Assess"]
[{"$nulls":4},146114,"Carbon Neutral Capital Program (CNCP)"]
[{"$nulls":4},148000,"Production"]
[{"$nulls":4},151000,"External Events"]
[{"$nulls":4},151020,"Weddings"]
[{"$nulls":4},151100,"Commercial Operations Administration"]
[{"$nulls":4},151101,"University Support Administration"]
[{"$nulls":4},151124,"Garden Wall Repairs"]
[{"$nulls":4},152000,"Sponsorship Events"]
[{"$nulls":4},152005,"Signature Events"]
[{"$nulls":4},152200,"Campus Store"]
[{"$nulls":4},152210,"Hatley Park Marketing"]
[{"$nulls":4},152400,"Interpretive Services - Daily Site Tours"]
[{"$nulls":4},154100,"PCS - Continuing Studies"]
[{"$nulls":4},162200,"Housing"]
[{"$nulls":4},162250,"Faculty Accommodation - Off-site"]
[{"$nulls":4},163000,"Recreation Centre"]
[{"$nulls":4},164000,"Campus Services Administration"]
[{"$nulls":4},170010,"IT Operations"]
[{"$nulls":4},170510,"Technology Refresh"]
[{"$nulls":4},180000,"Marketing - General"]
[{"$nulls":4},182000,"Marketing - Corporate"]
[{"$nulls":4},182025,"Commissions"]
[{"$nulls":4},182050,"Program Development: Marketing"]
[{"$nulls":4},182175,"Marketing: Program Delivery Items"]
[{"$nulls":4},182400,"Communications and Community Relations"]
[{"$nulls":4},182425,"Community Relations/Outlook Events"]
[{"$nulls":4},182800,"VP, Communications and Advancement"]
[{"$nulls":4},182850,"Communications and Advancement Operations"]
[{"$nulls":4},183000,"Indigenous Engagement"]
[{"$nulls":4},184000,"Global Recruitment & Partnerships"]
[{"$nulls":4},184005,"Global Digital Recruitment"]
[{"$nulls":4},184010,"Global Partner Recruitment"]
[{"$nulls":4},184015,"Student Recruitment"]
[{"$nulls":4},184020,"Global Partnerships"]
[{"$nulls":4},184025,"Program Quality:  Recruitment"]
[{"$nulls":4},185000,"VP Research & International"]
[{"$nulls":4},185005,"Office of Equity, Diversity and Inclusion"]
[{"$nulls":4},185030,"Indigenous Education"]
[{"$nulls":4},185080,"Business Development"]
[{"$nulls":4},186000,"Student Services"]
[{"$nulls":4},186015,"Financial Aid & Awards"]
[{"$nulls":4},186040,"SS: Career Learning and Development"]
[{"$nulls":4},186050,"SS: Student Success"]
[{"$nulls":4},186060,"SS: Student Engagement"]
[{"$nulls":4},186070,"BC Graduate Scholarship Program"]
[{"$nulls":4},200000,"VP Academic Provost"]
[{"$nulls":4},200005,"RRU Doctoral Conference"]
[{"$nulls":4},200100,"Office of Research Services"]
[{"$nulls":4},200112,"SoES - PBET - Dodd"]
[{"$nulls":4},200194,"Ethical Reviews"]
[{"$nulls":4},200226,"RESH - SSHRC - Inst Grant Program"]
[{"$nulls":4},200227,"RESH - SSHRC - Research Support Fund"]
[{"$nulls":4},200229,"PCS: Alex J Campbell Fund - Brigham"]
[{"$nulls":4},200429,"On-line Student Journal - SCC"]
[{"$nulls":4},200431,"CHLR-HCLABC-Integrated Hlth Ntwks-Research-Dickson"]
[{"$nulls":4},200432,"CNTR-Thrifty Foods-Buy BC Wild Directory-Belcher"]
[{"$nulls":4},200433,"CNTR-Manitoba Model Forest Inc-Brigham"]
[{"$nulls":4},200434,"ES-NSERC-Creatures of Habitat-Dallimore"]
[{"$nulls":4},200435,"CNTR-NTFP Harvester Training Program-Brigham"]
[{"$nulls":4},200436,"CHLR-CHLNet Canada Health Inventory"]
[{"$nulls":4},200437,"CLE-SSHRC-Livelihood Impacts in the Non-Timber Sector Belcher/Brigham"]
[{"$nulls":4},200438,"CNTR-Health Canada-BC Regional First Nation Environmental Contaminants Prog-Cocksedge"]
[{"$nulls":4},200439,"CNTR-VanCity-Buy BC Wild-Brigham"]
[{"$nulls":4},200440,"CNTR-Manitoba Model Forest - Workshops Phase II - Brigham"]
[{"$nulls":4},200441,"CNTR-TD Friends of the Environment Foundation-Brigham"]
[{"$nulls":4},200442,"CNTR-IMFN e-directory proposal development-Belcher"]
[{"$nulls":4},200443,"CHLR-LforL Leadership Development Systematic Review"]
[{"$nulls":4},200444,"MITACS"]
[{"$nulls":4},200445,"CNTR FSP Y10 2158 Burns Lake Community Forest Yr2 - Cocksedge"]
[{"$nulls":4},200446,"CNTR NSFCC NTFP Opportunities Assessment - Brigham"]
[{"$nulls":4},200448,"CHLR-LforL SDL Evaluation - Dickson"]
[{"$nulls":4},200449,"ES SSHRC-Citizens on Global Warming & the Enviornment-Kool"]
[{"$nulls":4},200450,"CTET-BC Campus-RRU Open Ed Resource Initiative-Burgess"]
[{"$nulls":4},200451,"CHLR-LforL 12 for 12 Evaluation and Expansion - Dickson"]
[{"$nulls":4},200453,"ES CFI LOF E-Research Platform - Dale"]
[{"$nulls":4},200498,"CAPITAL SoES CFI/BCKDF Core Sampling - Dallimore"]
[{"$nulls":4},200500,"CNTR TIDES Commercialization of NTFPs - Brigham"]
[{"$nulls":4},200502,"CHLR - CHSRF Project"]
[{"$nulls":4},200503,"RESH - SSHRC General Research Funds"]
[{"$nulls":4},200504,"RESH - NSERC General Research Funds"]
[{"$nulls":4},200507,"ES-NSERC(EG) Habitat Model - Dallimore"]
[{"$nulls":4},200508,"ES-SSHRC MC3 - Dale"]
[{"$nulls":4},200522,"RESH - Faculty Research Grants"]
[{"$nulls":4},200551,"SoES CFI LOF IOF #213282- Dale"]
[{"$nulls":4},200567,"CAPITAL OoS FBC EV Charging Stations-Wilkin"]
[{"$nulls":4},200570,"Veletsianos - CRC, SoET"]
[{"$nulls":4},200573,"Veletsianos - CRC, SoET"]
[{"$nulls":4},200578,"SoES SMU SSHRC Enviro Stewardship-Loucks"]
[{"$nulls":4},200596,"CAPITAL ES CFI/BCKDF Boat - Dallimore"]
[{"$nulls":4},200600,"CAPITAL ES CFI/BCKDF - Model for Sust Comm Dev - Dale"]
[{"$nulls":4},200601,"CS NSRCF - Brigham"]
[{"$nulls":4},200602,"ES SSHRC CC Imperative - Dale"]
[{"$nulls":4},200603,"CIS CIFOR Consultancy - Belcher"]
[{"$nulls":4},200604,"ES CBT Community Resilience - Loucks"]
[{"$nulls":4},200605,"ES CFI LOF IOF #32042 - Dale"]
[{"$nulls":4},200606,"ES CFI LOF IOF #31848 - Dallimore"]
[{"$nulls":4},200622,"Cox AIHS CRIO Pop Resiliency SHS"]
[{"$nulls":4},200624,"Schissel SSHRC CoIS"]
[{"$nulls":4},200637,"Dale, CFI, CoLabS, SES"]
[{"$nulls":4},200638,"Belcher, SSHRC IG, Transdisciplinary Effectiveness, CoIS"]
[{"$nulls":4},200639,"Vannini, SSHRC IG, Natural Wild Canadian, SCC"]
[{"$nulls":4},200641,"Richardson, UPEI, SSHRC, SET"]
[{"$nulls":4},200646,"Hartney, CIHR Indigenous Health Leadership, SoLS"]
[{"$nulls":4},200647,"Plush, MITACS, Valuing Youth Voices, SHS"]
[{"$nulls":4},200650,"Cox, Red Cross, Youth Voices Rising, SHS"]
[{"$nulls":4},200652,"CAPITAL Dodd, CFI Mass Spectrometer, SoES"]
[{"$nulls":4},200658,"Cox,SSHRC Insight, SHS"]
[{"$nulls":4},200661,"Dodd, CFI IOF: Mass Spectrometer, SES"]
[{"$nulls":4},200663,"Hartney, School District 61, SLS"]
[{"$nulls":4},200664,"Hartney, CIHR Project, DESTINED, SLS"]
[{"$nulls":4},200665,"Banting-Newell, SES"]
[{"$nulls":4},200666,"Mittelman, SSHRC IDG, Exploration Chartiable Giving, SoB"]
[{"$nulls":4},200667,"Bird, Canada History Fund, War Memories Across Canada, Episode III, STHM"]
[{"$nulls":4},200668,"Pulla SSHRC IDB Social Licensing CoIS"]
[{"$nulls":4},200669,"Dale, SSHRC IDG, Research Curation, SES"]
[{"$nulls":4},200670,"Veletsianos, SSHRC IDG, Female Faculty and Online Harassment, SET"]
[{"$nulls":4},200671,"Dallimore, Gov't of NWT, Coastal Mapping, SES"]
[{"$nulls":4},200672,"Taylor, Canadian Values in Action, SLS"]
[{"$nulls":4},200673,"Pulla, SSHRC UVic: Reclaiming language through theatre, CIS"]
[{"$nulls":4},200674,"Dodd, Lundin, SES"]
[{"$nulls":4},200675,"Dallimore, PromoSci2018, SES"]
[{"$nulls":4},200676,"Bird, Wilderness Tourism Association, STHM"]
[{"$nulls":4},200677,"Hartney,MSFHR CS, SLS"]
[{"$nulls":4},200679,"King, SSHRC IG, SES"]
[{"$nulls":4},200680,"Rekar Munro, SSHRC IG, FoM"]
[{"$nulls":4},200682,"Takach, SSHRC IDG, Interweaving Traditional Ecological Knowledge, SCC"]
[{"$nulls":4},200684,"Prasad, SSHRC IDG, Determinants motivating diaspora entrepreneurs, SoB"]
[{"$nulls":4},200685,"Dallimore, Gov't NWT, Geologic Investigation, Village of Tuktoyaktuk, SES"]
[{"$nulls":4},200686,"Veletsianos, CRC, CRC Renewal, SET"]
[{"$nulls":4},200687,"Dale, UFV, SES"]
[{"$nulls":4},200688,"Hodson, MITACS, CIS"]
[{"$nulls":4},200689,"Hartney, SSHRC Connection, SoLS"]
[{"$nulls":4},200690,"Dallimore, NRCan, SES"]
[{"$nulls":4},200691,"Cox, NRCan, SHS"]
[{"$nulls":4},200692,"Belcher, PowerToBE TOC Facilitation, CIS"]
[{"$nulls":4},200693,"Belcher, Ashoka Research Chair, CIS"]
[{"$nulls":4},200694,"Bird, MNR Heritage, Workshop STHS"]
[{"$nulls":4},200696,"Kajzer Mitchell & Zidulka, Ministry of Health, SoB"]
[{"$nulls":4},200697,"Newell, SSHRC, PEG, SES"]
[{"$nulls":4},200698,"RESH NSRC EDICap"]
[{"$nulls":4},200699,"Cox, BCCAS, SHS"]
[{"$nulls":4},200700,"RESH: Global Advancement & Diversity Fund (Fdn #104)"]
[{"$nulls":4},200701,"RESH: Buttedahl Skene Fund (Fdn)"]
[{"$nulls":4},200702,"RESH: Teaching with Technology (TWT) - Faculty"]
[{"$nulls":4},200703,"RESH: Internal Research Grants (IGR) - Faculty"]
[{"$nulls":4},200704,"RESH: Conference Seed Fund (CSF)"]
[{"$nulls":4},200705,"RESH, Ministry of Health (MOH), ORS"]
[{"$nulls":4},200706,"Restricted Research Funds"]
[{"$nulls":4},200707,"RESH: SSHRC SIG 22-25, ORS"]
[{"$nulls":4},200710,"RESH: Overhead and Indirect Costs, ORS"]
[{"$nulls":4},200720,"Mitac _ Wasdani Parsad SoB"]
[{"$nulls":4},200721,"Mitac_Heykoop, Vancouver Foundation, SoL"]
[{"$nulls":4},200722,"DALE CFIIOF CoLabs SES"]
[{"$nulls":4},200723,"Hartney, Van Foundation, Dementia, SLS"]
[{"$nulls":4},200724,"Heykoop, Micahel Smith convene, SoL"]
[{"$nulls":4},200725,"Homer-Dixon,McConell, Cascade, SES"]
[{"$nulls":4},200726,"Homer-Dixon,Winslow,Cascade, SES"]
[{"$nulls":4},200727,"Dale, Ryerson, SES"]
[{"$nulls":4},200728,"Madan, City of Colwood, SHS"]
[{"$nulls":4},200729,"Hodson, SSHRC Connection, CIS"]
[{"$nulls":4},200730,"Dale, CAGS, Student Roundtable, SES"]
[{"$nulls":4},200733,"Veletsianos, CIHR, COVID19, SET"]
[{"$nulls":4},200734,"Hodson, SSHRC Insight, CIS"]
[{"$nulls":4},200735,"DAS, SSHRC PEG, Low-carbon, CIS"]
[{"$nulls":4},200736,"Bernard, SSHRC, Applied Doctorial Research, COIS"]
[{"$nulls":4},200737,"Cox, SSHRC Insight, SHS"]
[{"$nulls":4},200738,"BIRD, Misc, STHM"]
[{"$nulls":4},200739,"HomerDixon, McConnel WGSI, Cascade"]
[{"$nulls":4},200740,"Deimling & Hill, Mindful Campuses 2020, HR/ORS"]
[{"$nulls":4},200741,"Hartney, Cdn Frailty Network, SLS"]
[{"$nulls":4},200743,"Hodson, CRC, CIS"]
[{"$nulls":4},200744,"Hachigian, SSHRC PEG, FoM"]
[{"$nulls":4},200745,"CLOSED WilsonMah, BCcampus, STHM"]
[{"$nulls":4},200746,"CLOSED RRU, NSERC, EDICAP Stipend"]
[{"$nulls":4},200747,"WilsonMah, Selkirk College, STHM"]
[{"$nulls":4},200748,"Veletsianos, SSHRC IDG, Future of Higher Education, SET"]
[{"$nulls":4},200749,"Steenkamp, CRCEWF, Research Services"]
[{"$nulls":4},200750,"Research Targets - External"]
[{"$nulls":4},200751,"Das, SSHRC,PDG CMHC"]
[{"$nulls":4},200752,"Hartney, CHLNet, COVID19 Leading Through Crisis, SLS"]
[{"$nulls":4},200753,"Hodson, SSHRC - Ryerson, Anti-Social Social Media, CIS"]
[{"$nulls":4},200754,"Cox, NRCAN, Climate Course, SHS"]
[{"$nulls":4},200755,"MacArthur, Tier2 CRC, SoB"]
[{"$nulls":4},200756,"Rowe, SSHRC, COVID-19 Stress Adaptation for Teachers, SLS"]
[{"$nulls":4},200758,"Homer-Dixon, General/Misc, Cascade Institute"]
[{"$nulls":4},200761,"Furukawa, Mitacs PostDoc, ORS"]
[{"$nulls":4},200762,"Hodson, SSHRC KSG, A New Glass Ceiling, CIS"]
[{"$nulls":4},200763,"Pulla, SSHRC SFU, HLCS, CIS"]
[{"$nulls":4},200764,"Madan, ELHRA, SHS"]
[{"$nulls":4},200765,"Jones, SSHRC PEG, CIS"]
[{"$nulls":4},200766,"Hartney, SSHRC PEG, SLS"]
[{"$nulls":4},200767,"Cox, CRI, SHS"]
[{"$nulls":4},200768,"Cox, NRCan Platofrm, SHS"]
[{"$nulls":4},200769,"Irwin, MCICFIT, Malawi, FoM"]
[{"$nulls":4},200770,"Dale, SSHRC IG, SES"]
[{"$nulls":4},200771,"Hachigian, Vancouver Foundation SCG, FoM"]
[{"$nulls":4},200772,"Homer-Dixon, McConnell, Cascade, SES"]
[{"$nulls":4},200773,"Walinga, SSHRC PEG (Own the Podium), SCC"]
[{"$nulls":4},200774,"Slick, CWF GBV Pandemic Study, SHS"]
[{"$nulls":4},200775,"Lokanan, SSHRC IDG, SoB"]
[{"$nulls":4},200776,"Smith-Carrier, CRC Tier 2, SHS"]
[{"$nulls":4},200777,"Manion, WorkBC with ZeroCeiling, SHS"]
[{"$nulls":4},200779,"Dodd, BC Gov Windy Craggy, SES"]
[{"$nulls":4},200780,"Heykoop, MSFHR Scholar, SLS"]
[{"$nulls":4},200781,"Smith-Carrier, SSHRC Insight, SHS"]
[{"$nulls":4},200782,"Belcher, Leuphana Fellowship, CIS"]
[{"$nulls":4},200783,"Prasad, CRC Renewal, FoM"]
[{"$nulls":4},200784,"Belcher, ICARDA Contract, CIS"]
[{"$nulls":4},200785,"Dodd, Health Canada, SET"]
[{"$nulls":4},200786,"Coulter, Mitacs Accelerate PostDoc, SHS"]
[{"$nulls":4},200787,"Wolfe, SSHRC IDG, SET"]
[{"$nulls":4},200788,"Wolfe, SSHRC Insight, SET"]
[{"$nulls":4},200789,"Wolfe, SSHRC PD, SET"]
[{"$nulls":4},200790,"MacArthur, SSHRC Connection, FoM"]
[{"$nulls":4},200791,"Dallimore, NSERC PromoScience 2022, SES"]
[{"$nulls":4},200792,"Lokanan, NFREF Thriving Organizations, FoM"]
[{"$nulls":4},200793,"Cox, CRI, SHS"]
[{"$nulls":4},200794,"Steenkamp, CRC EDI, ORS"]
[{"$nulls":4},200795,"Veletsianos, SSHRC RGDI, SET"]
[{"$nulls":4},200796,"Das, SSHRC Insight, CIS"]
[{"$nulls":4},200797,"Jones, SSHRC Insight, CIS"]
[{"$nulls":4},200798,"Newell, Tier 2 CRC, SES"]
[{"$nulls":4},200799,"Vannini, SSHRC IDG, SCC"]
[{"$nulls":4},200800,"General Restricted Research Funds"]
[{"$nulls":4},200801,"Dale - Restricted Research Fund - SoES"]
[{"$nulls":4},200802,"Dodd - Restricted Research Funds - SoES"]
[{"$nulls":4},200803,"Taylor - Restricted Research Funds - SoLS"]
[{"$nulls":4},200804,"Hamilton - Restricted Research Funds - SoET"]
[{"$nulls":4},200805,"Cox - Restricted Research Funds - SoHS"]
[{"$nulls":4},200807,"Slick - Restricted Research Funds - SoHS"]
[{"$nulls":4},200808,"Veletsianos (CRC) - Restricted Research Funds - SoET"]
[{"$nulls":4},200809,"Belcher (CRC) - Restricted Research Funds - CoIS"]
[{"$nulls":4},200810,"Bird - Restricted Research Funds - SoTHM"]
[{"$nulls":4},200811,"White - Restricted Research Funds - SoTHM"]
[{"$nulls":4},200812,"Thomlinson - Restricted Research Funds - SoTHM"]
[{"$nulls":4},200813,"Young - Restricted Research Funds - SoHS"]
[{"$nulls":4},200814,"Wilson-Mah - Restricted Research Funds - SoTHM"]
[{"$nulls":4},200815,"Dallimore - Restricted Research Funds - SES"]
[{"$nulls":4},200816,"Moran - Restricted Research Funds - SoES"]
[{"$nulls":4},200817,"Hartney - Restricted Research Funds - SoLS"]
[{"$nulls":4},200818,"KajzerMitchell - Restricted Research Funds - SoB"]
[{"$nulls":4},200819,"Zidulka - Restricted Research Funds - SoB"]
[{"$nulls":4},200820,"Research - Misc"]
[{"$nulls":4},200822,"Unsal, SSHRC IDG, SCC"]
[{"$nulls":4},200823,"Smith-Carrier, SSHRC IDG, SoHS"]
[{"$nulls":4},200824,"Bird, City of Victoria, SCC"]
[{"$nulls":4},200825,"Newell, SSHRC Insight, SES"]
[{"$nulls":4},200826,"Newell, NFRFR, SES"]
[{"$nulls":4},200827,"Heykoop, Pediatric RI, SLS"]
[{"$nulls":4},200828,"Homer-Dixon; Rasmussen; Cascade"]
[{"$nulls":4},200829,"Cox, ECCC, SHS"]
[{"$nulls":4},200830,"Belcher, WorldFish, CIS"]
[{"$nulls":4},200831,"Axe, Vic Fdtn, CIS"]
[{"$nulls":4},200832,"Homer Dixon, Ivey Fdtn GeoThermal, Cascade"]
[{"$nulls":4},200833,"Homer Dixon, Metcalf PermaFrost, Cascade"]
[{"$nulls":4},200834,"Manion, UN EVAC, SHS"]
[{"$nulls":4},200835,"Young, VanFnd, Dogs & Guardians"]
[{"$nulls":4},200836,"Walinga, ViaSport BC, Safe Sport Behaviour, SCC"]
[{"$nulls":4},200837,"Remillard, SSHRC Con., Ethical Communications , SCC"]
[{"$nulls":4},200838,"Hachigian, SSHRC Connection, SoB"]
[{"$nulls":4},200839,"Smith Carrier, NFREF, SHS"]
[{"$nulls":4},200840,"Homer-Dixon, Winslow II, Cascade"]
[{"$nulls":4},200841,"Steenkamp, CRCES II, Research"]
[{"$nulls":4},200842,"Pozzobon, CC Police Reform, SoLS"]
[{"$nulls":4},200843,"Irwin, FIT SoB"]
[{"$nulls":4},200844,"Heykoop, NFRF, Transforming AYA Cancer, SLS"]
[{"$nulls":4},201100,"Climate Leadership"]
[{"$nulls":4},201101,"UN SDGs"]
[{"$nulls":4},201102,"Ashoka"]
[{"$nulls":4},201103,"Belcher Research"]
[{"$nulls":4},211000,"Registration Services"]
[{"$nulls":4},211050,"International Admissions"]
[{"$nulls":4},212000,"Convocation"]
[{"$nulls":4},213000,"Registrar's Office"]
[{"$nulls":4},213005,"Admissions"]
[{"$nulls":4},213010,"Enrolment Services"]
[{"$nulls":4},215000,"Faculty Affairs"]
[{"$nulls":4},221000,"Library Services"]
[{"$nulls":4},221051,"Library - Program Development"]
[{"$nulls":4},222100,"CTET"]
[{"$nulls":4},222151,"CTET - Program Quality"]
[{"$nulls":4},223000,"Textbook Services"]
[{"$nulls":4},230000,"AVP: Student and Academic Services"]
[{"$nulls":4},250000,"School of Tourism & Hospitality Management"]
[{"$nulls":4},250001,"School of T&HM - Research"]
[{"$nulls":4},250002,"School of T&HM - Service"]
[{"$nulls":4},250005,"SoTHM Case Competition Competing Team"]
[{"$nulls":4},250200,"BA International Hotel Management - On Campus"]
[{"$nulls":4},250250,"BA International Hotel Management - Online"]
[{"$nulls":4},250750,"MA Tourism Management - On Campus"]
[{"$nulls":4},250800,"BA Global Tourism Management"]
[{"$nulls":4},250850,"MA & Cert Tourism Management - Blended"]
[{"$nulls":4},250950,"Year 2 Tourism Programs"]
[{"$nulls":4},260000,"Media Support Services"]
[{"$nulls":4},320100,"MA & Dip Learning and Technology"]
[{"$nulls":4},400000,"School of Environment and Sustainability - Management"]
[{"$nulls":4},400001,"School of Environment and Sustainability - Research"]
[{"$nulls":4},400002,"School of Environment and Sustainability - Service"]
[{"$nulls":4},405000,"BA/BSc & Cert in Environmental Practice"]
[{"$nulls":4},405100,"MA/MSc in Environmental Practice"]
[{"$nulls":4},405200,"CCEE - Management"]
[{"$nulls":4},405300,"SoES: ECO Canada Contract Indigenous Certificate Development"]
[{"$nulls":4},405400,"Graduate Certificate in Science and Policy of Climate Change"]
[{"$nulls":4},410000,"BSc in Environmental Science"]
[{"$nulls":4},410500,"BSc in Environmental Science - Blended"]
[{"$nulls":4},430000,"MA / MSc in Environment & Management-Blended"]
[{"$nulls":4},430050,"MA/MSc in Environment and Management-On Campus"]
[{"$nulls":4},450000,"BSc - Major Student Projects"]
[{"$nulls":4},460016,"Student Research Grants"]
[{"$nulls":4},470000,"MA, Dip & Cert: Environmental Ed and Communication"]
[{"$nulls":4},500000,"Faculty of Management"]
[{"$nulls":4},500200,"FoM: School of Business"]
[{"$nulls":4},500201,"School of Business - Research"]
[{"$nulls":4},500202,"School of Business - Service"]
[{"$nulls":4},500250,"City Studio"]
[{"$nulls":4},510000,"MBA"]
[{"$nulls":4},510050,"MBA - On Campus"]
[{"$nulls":4},510500,"Doctor of Business Administration"]
[{"$nulls":4},519009,"MA in Environment and Management (MEM) - Offshore"]
[{"$nulls":4},519011,"Jinhua College of Profession and Technology"]
[{"$nulls":4},530000,"BCom - On Campus"]
[{"$nulls":4},530003,"BCom - Blended"]
[{"$nulls":4},530005,"SoB Case Competition Competing Team"]
[{"$nulls":4},530006,"RRU Design Thinking Challenge"]
[{"$nulls":4},540500,"Eric C. Douglass Ctre for Entrepreneurial Studies Fund"]
[{"$nulls":4},550000,"Master of Global Management"]
[{"$nulls":4},550100,"Master of Global Management - Blended"]
[{"$nulls":4},550200,"Graduate Certificate in Financial Analysis"]
[{"$nulls":4},570000,"Bachelors of Business Administration"]
[{"$nulls":4},570100,"Bachelors of Business Administration Year 2"]
[{"$nulls":4},580100,"MA Exec & Org Coaching and GC Adv Coaching Practices"]
[{"$nulls":4},580200,"GC: Organization Design & Development"]
[{"$nulls":4},580300,"GC: Workplace Innovation"]
[{"$nulls":4},580400,"GC: Change Management"]
[{"$nulls":4},580500,"GC: Corporate Social Innovation"]
[{"$nulls":4},580600,"GC: Management and Leadership"]
[{"$nulls":4},580700,"Project Management and Organizational Leadership - DIP"]
[{"$nulls":4},580800,"GC: Financing Social Impact"]
[{"$nulls":4},580900,"GC: Indigenous Economic Development"]
[{"$nulls":4},600012,"MA & Cert Intercultural & International Communication"]
[{"$nulls":4},600020,"MAIIC - On Campus"]
[{"$nulls":4},610000,"MA Leadership"]
[{"$nulls":4},610008,"MA & Dip in Education Leadership and Management"]
[{"$nulls":4},610009,"MA in Education Leadership and Management - Offshore"]
[{"$nulls":4},610010,"BA in Professional Communication - Blended"]
[{"$nulls":4},610011,"MA in Professional Communication"]
[{"$nulls":4},610012,"BA in Professional Communication - On Campus"]
[{"$nulls":4},610013,"GC: Instructional Design"]
[{"$nulls":4},610015,"GC: Online Learning Facilitation"]
[{"$nulls":4},610016,"MA in Education Leadership and Management - MLES"]
[{"$nulls":4},610020,"School of Communication & Culture - Management"]
[{"$nulls":4},610021,"School of Communication & Culture - Research"]
[{"$nulls":4},610022,"School of Communication & Culture - Service"]
[{"$nulls":4},610025,"GC: Intercultural Communication and Leadership"]
[{"$nulls":4},620045,"MA Leadership - Health"]
[{"$nulls":4},620500,"School of Leadership Studies - Management"]
[{"$nulls":4},620502,"School of Leadership - Research"]
[{"$nulls":4},620503,"School of Leadership - Service"]
[{"$nulls":4},620510,"MA, Cert & Dip Global Leadership - Blended"]
[{"$nulls":4},620520,"MA, Cert & Dip Global Leadership - On Campus"]
[{"$nulls":4},640000,"School of Education and Technology - Management"]
[{"$nulls":4},640001,"School of Educ and Technology - Research"]
[{"$nulls":4},640002,"School of Education & Technology - Service"]
[{"$nulls":4},640100,"MA and GC's - Higher Education Admin and Leadership"]
[{"$nulls":4},640200,"DIP: Technology-Enhanced Learning and Design"]
[{"$nulls":4},700000,"School of Humanitarian Studies - Management"]
[{"$nulls":4},700001,"School of Humanitarian Studies - Research"]
[{"$nulls":4},700002,"School of Humanitarian Studies - Service"]
[{"$nulls":4},700040,"BA in Inter-Disciplinary Studies"]
[{"$nulls":4},700050,"MA in Inter-Disciplinary Studies"]
[{"$nulls":4},705000,"MA and DIP Human Security & Peacebuilding"]
[{"$nulls":4},706000,"MA and DIP Disaster and Emergency Management"]
[{"$nulls":4},707000,"MA and Dip Climate Action Leadership"]
[{"$nulls":4},708000,"GC: Child Protection to Wellbeing"]
[{"$nulls":4},710000,"MA and DIP Conflict Analysis & Management"]
[{"$nulls":4},710100,"Insight Summit Conference"]
[{"$nulls":4},720000,"BA Justice Studies - Blended"]
[{"$nulls":4},720100,"BA Justice Studies - OnCampus"]
[{"$nulls":4},720200,"MA and DIP Justice Studies"]
[{"$nulls":4},750000,"FSAS - Management"]
[{"$nulls":4},750100,"Doctor of Social Sciences"]
[{"$nulls":4},750150,"CoIS - Management"]
[{"$nulls":4},750151,"COIS - Research"]
[{"$nulls":4},750152,"COIS - Service"]
[{"$nulls":4},750155,"Interdisciplinary UG Year One"]
[{"$nulls":4},760100,"Thesis and Dissertation Support"]
[{"$nulls":4},800000,"Provincial Operating Grant"]
[{"$nulls":4},800005,"Program Quality -Operations"]
[{"$nulls":4},800008,"5 YR External Program Reviews"]
[{"$nulls":4},800021,"FSAS Program Quality"]
[{"$nulls":4},800071,"PCS Program Quality"]
[{"$nulls":4},800072,"FoM Program Quality"]
[{"$nulls":4},800100,"Planning Allowances"]
[{"$nulls":4},800105,"Vacancy Allowances"]
[{"$nulls":4},800150,"Academic Program Allowances"]
[{"$nulls":4},800200,"Strategic Operating Investments"]
[{"$nulls":4},800211,"Westshore Campus Operations (fiscal 2021 onward)"]
[{"$nulls":4},800250,"Westshore Rental Operations"]
[{"$nulls":4},900200,"GC: Human Resources"]
[{"$nulls":4},900201,"GC: Project Management"]
[{"$nulls":4},900202,"GC: Executive Coaching"]
[{"$nulls":4},900204,"GC: Professional Communication Management"]
[{"$nulls":4},900228,"GC: Sustainable Community Development"]
[{"$nulls":4},900229,"GC: Leadership and Management"]
[{"$nulls":4},900233,"MA Leadership Executive with VBL"]
[{"$nulls":4},900272,"P&CS: First Nations Technology Council"]
[{"$nulls":4},900290,"PCS: Future Skills, Project Connect"]
[{"$nulls":4},900300,"P&CS:  English for Academic Purposes"]
[{"$nulls":4},900410,"General Studies Courses - FOM"]
[{"$nulls":4},900420,"General Studies Courses - FSAS"]
[{"$nulls":4},900430,"General Studies Courses - OIS"]
[{"$nulls":4},900440,"General Studies Courses - P&CS"]
[{"$nulls":4},950000,"Professional and Continuing Studies, AVP - Mgmt"]
[{"$nulls":4},960000,"Professional and Continuing Studies - Programs Mgmt"]
[{"$nulls":4},960100,"PSC Grants"]
[{"$nulls":4},960300,"DCL - Custom Programs"]
[{"$nulls":4},960500,"DCL - Package Programs"]
[{"$nulls":4},970000,"Global Learning and Language Centre - Mgmt"]
[{"$nulls":4},970300,"International Custom Learning - Custom Programs"]
[{"$nulls":4},970500,"GLLC Open Enrolment Package Programs"]
[{"$nulls":4},970700,"GD: Project Mgmt & Org Leadership - Royal Bridge"]
[{"$nulls":4},970800,"MAIIC - RoyalBridge College"]

{"sheet":"Apr13Update","index":2,"n_rows":461,"n_cols":8,"rows_kept":461,"cut":false,"hidden":true,"merged":[]}
["Attr.value","Description","Owner","Value","Per from","Per to","S","In Other List"]
[101000,"Board of Governors",null,0,200001,209912,"N",{"$f":"NOT(ISERROR(MATCH(A2,costCentres,0)))","v":true}]
[101500,"Board and Administrative Services",null,0,0,209999,"N",{"$f":"NOT(ISERROR(MATCH(A3,costCentres,0)))","v":true}]
[102500,"President's Office",null,0,0,209999,"N",{"$f":"NOT(ISERROR(MATCH(A4,costCentres,0)))","v":true}]
[104000,"Financial Planning",null,0,200001,209912,"N",{"$f":"NOT(ISERROR(MATCH(A5,costCentres,0)))","v":true}]
[104110,"Additions to March 31, 2017",null,0,0,209999,"N",{"$f":"NOT(ISERROR(MATCH(A6,costCentres,0)))","v":true}]
[104120,"Additions: Apr 1 17 to Mar 31 18",null,0,0,209999,"N",{"$f":"NOT(ISERROR(MATCH(A7,costCentres,0)))","v":true}]
[104700,"Classroom Scheduling Project",null,0,0,209999,"N",{"$f":"NOT(ISERROR(MATCH(A8,costCentres,0)))","v":true}]
[104781,"Nixon Building",null,0,0,209999,"N",{"$f":"NOT(ISERROR(MATCH(A9,costCentres,0)))","v":true}]
[104852,"Nixon Water Main Repair",null,0,0,209999,"N",{"$f":"NOT(ISERROR(MATCH(A10,costCentres,0)))","v":true}]
[104892,"Campus Electrical Intrastructure Upgrades",null,0,0,209999,"N",{"$f":"NOT(ISERROR(MATCH(A11,costCentres,0)))","v":true}]
[104996,"Corp Cost Centre ACA - Non Capital",null,0,0,209999,"N",{"$f":"NOT(ISERROR(MATCH(A12,costCentres,0)))","v":true}]
[104997,"Donor Projects - non capital",null,0,0,209999,"N",{"$f":"NOT(ISERROR(MATCH(A13,costCentres,0)))","v":true}]
[104998,"Corp Cost Centre - Prov Minor Maintenance",null,0,0,209999,"N",{"$f":"NOT(ISERROR(MATCH(A14,costCentres,0)))","v":true}]
[104999,"Corp Cost Centre - Capital",null,0,0,209999,"N",{"$f":"NOT(ISERROR(MATCH(A15,costCentres,0)))","v":true}]
[105000,"VP Finance and Operations",null,0,200001,209912,"N",{"$f":"NOT(ISERROR(MATCH(A16,costCentres,0)))","v":true}]
[105200,"Data Governance",null,0,0,209999,"N",{"$f":"NOT(ISERROR(MATCH(A17,costCentres,0)))","v":true}]
[106000,"Advancement",null,0,200001,209912,"N",{"$f":"NOT(ISERROR(MATCH(A18,costCentres,0)))","v":true}]
[106005,"Foundation Capital Campaign",null,0,0,209999,"N",{"$f":"NOT(ISERROR(MATCH(A19,costCentres,0)))","v":true}]
[106200,"Alumni Relations",null,0,0,209999,"N",{"$f":"NOT(ISERROR(MATCH(A20,costCentres,0)))","v":true}]
[107001,"Filming",null,0,200001,209912,"N",{"$f":"NOT(ISERROR(MATCH(A21,costCentres,0)))","v":true}]
[107600,"Operations and Resilience",null,0,0,209999,"N",{"$f":"NOT(ISERROR(MATCH(A22,costCentres,0)))","v":true}]
[120000,"Human Resources",null,0,200001,209912,"N",{"$f":"NOT(ISERROR(MATCH(A23,costCentres,0)))","v":true}]
[120005,"HR - Centralized Funds",null,0,0,209999,"N",{"$f":"NOT(ISERROR(MATCH(A24,costCentres,0)))","v":true}]
[120010,"HR Corporate",null,0,0,209999,"N",{"$f":"NOT(ISERROR(MATCH(A25,costCentres,0)))","v":true}]
[120160,"Faculty Pro-D Pool",null,0,0,209999,"N",{"$f":"NOT(ISERROR(MATCH(A26,costCentres,0)))","v":true}]
[130000,"Financial Services",null,0,200001,209912,"N",{"$f":"NOT(ISERROR(MATCH(A27,costCentres,0)))","v":true}]
[130010,"Finance Corporate",null,0,0,209999,"N",{"$f":"NOT(ISERROR(MATCH(A28,costCentres,0)))","v":true}]
[130011,"Cascade",null,0,0,209999,"N",{"$f":"NOT(ISERROR(MATCH(A29,costCentres,0)))","v":true}]
[130012,"Commercial Rental (Cedar)",null,0,0,209999,"N",{"$f":"NOT(ISERROR(MATCH(A30,costCentres,0)))","v":true}]
[130500,"Financial Reporting and Compliance",null,0,0,209999,"N",{"$f":"NOT(ISERROR(MATCH(A31,costCentres,0)))","v":true}]
[140000,"Campus Operations Administration",null,0,200001,209912,"N",{"$f":"NOT(ISERROR(MATCH(A32,costCentres,0)))","v":true}]
[141000,"Maintenance Operations",null,0,200001,209912,"N",{"$f":"NOT(ISERROR(MATCH(A33,costCentres,0)))","v":true}]
[141900,"Enterprise Utilities",null,0,0,209999,"N",{"$f":"NOT(ISERROR(MATCH(A34,costCentres,0)))","v":true}]
[142000,"Gardens & Grounds",null,0,200001,209912,"N",{"$f":"NOT(ISERROR(MATCH(A35,costCentres,0)))","v":true}]
[143000,"Custodial/Housekeeping",null,0,200001,209912,"N",{"$f":"NOT(ISERROR(MATCH(A36,costCentres,0)))","v":true}]
[145000,"Security & Assistance Services",null,0,200001,209912,"N",{"$f":"NOT(ISERROR(MATCH(A37,costCentres,0)))","v":true}]
[145100,"Parking",null,0,200001,209912,"N",{"$f":"NOT(ISERROR(MATCH(A38,costCentres,0)))","v":true}]
[146073,"2003/04 ACA Millward Structural Deficen Assess",null,0,0,209999,"N",{"$f":"NOT(ISERROR(MATCH(A39,costCentres,0)))","v":true}]
[146114,"Carbon Neutral Capital Program (CNCP)",null,0,0,209999,"N",{"$f":"NOT(ISERROR(MATCH(A40,costCentres,0)))","v":true}]
[148000,"Production",null,0,200001,209912,"N",{"$f":"NOT(ISERROR(MATCH(A41,costCentres,0)))","v":true}]
[151000,"External Events",null,0,200001,209912,"N",{"$f":"NOT(ISERROR(MATCH(A42,costCentres,0)))","v":true}]
[151020,"Weddings",null,0,0,209999,"N",{"$f":"NOT(ISERROR(MATCH(A43,costCentres,0)))","v":true}]
[151100,"Commercial Operations Administration",null,0,200001,209912,"N",{"$f":"NOT(ISERROR(MATCH(A44,costCentres,0)))","v":true}]
[151101,"University Support Administration",null,0,0,209999,"N",{"$f":"NOT(ISERROR(MATCH(A45,costCentres,0)))","v":true}]
[151124,"Garden Wall Repairs",null,0,0,209999,"N",{"$f":"NOT(ISERROR(MATCH(A46,costCentres,0)))","v":true}]
[152000,"Sponsorship Events",null,0,200001,209912,"N",{"$f":"NOT(ISERROR(MATCH(A47,costCentres,0)))","v":true}]
[152005,"Signature Events",null,0,0,209999,"N",{"$f":"NOT(ISERROR(MATCH(A48,costCentres,0)))","v":true}]
[152200,"Campus Store",null,0,200001,209912,"N",{"$f":"NOT(ISERROR(MATCH(A49,costCentres,0)))","v":true}]
[152210,"Hatley Park Marketing",null,0,0,209999,"N",{"$f":"NOT(ISERROR(MATCH(A50,costCentres,0)))","v":true}]
[152400,"Interpretive Services - Daily Site Tours",null,0,200001,209912,"N",{"$f":"NOT(ISERROR(MATCH(A51,costCentres,0)))","v":true}]
[154100,"PCS - Continuing Studies",null,0,0,209999,"N",{"$f":"NOT(ISERROR(MATCH(A52,costCentres,0)))","v":true}]
[162200,"Housing",null,0,200001,209912,"N",{"$f":"NOT(ISERROR(MATCH(A53,costCentres,0)))","v":true}]
[162250,"Faculty Accommodation - Off-site",null,0,0,209999,"N",{"$f":"NOT(ISERROR(MATCH(A54,costCentres,0)))","v":true}]
[163000,"Recreation Centre",null,0,200001,209912,"N",{"$f":"NOT(ISERROR(MATCH(A55,costCentres,0)))","v":true}]
[164000,"Campus Services Administration",null,0,200001,209912,"N",{"$f":"NOT(ISERROR(MATCH(A56,costCentres,0)))","v":true}]
[170010,"IT Operations",null,0,0,209999,"N",{"$f":"NOT(ISERROR(MATCH(A57,costCentres,0)))","v":true}]
[170510,"Technology Refresh",null,0,0,209999,"N",{"$f":"NOT(ISERROR(MATCH(A58,costCentres,0)))","v":true}]
[180000,"Marketing - General",null,0,200001,209912,"N",{"$f":"NOT(ISERROR(MATCH(A59,costCentres,0)))","v":true}]
[182000,"Marketing - Corporate",null,0,200001,209912,"N",{"$f":"NOT(ISERROR(MATCH(A60,costCentres,0)))","v":true}]
[182025,"Commissions",null,0,0,209999,"N",{"$f":"NOT(ISERROR(MATCH(A61,costCentres,0)))","v":true}]
[182050,"Program Development: Marketing",null,0,0,209999,"N",{"$f":"NOT(ISERROR(MATCH(A62,costCentres,0)))","v":true}]
[182175,"Marketing: Program Delivery Items",null,0,0,209999,"N",{"$f":"NOT(ISERROR(MATCH(A63,costCentres,0)))","v":true}]
[182400,"Communications and Community Relations",null,0,200001,209912,"N",{"$f":"NOT(ISERROR(MATCH(A64,costCentres,0)))","v":true}]
[182425,"Community Relations/Outlook Events",null,0,0,209999,"N",{"$f":"NOT(ISERROR(MATCH(A65,costCentres,0)))","v":true}]
[182800,"VP, Communications and Advancement",null,0,0,209999,"N",{"$f":"NOT(ISERROR(MATCH(A66,costCentres,0)))","v":true}]
[182850,"Communications and Advancement Operations",null,0,0,209999,"N",{"$f":"NOT(ISERROR(MATCH(A67,costCentres,0)))","v":true}]
[183000,"Indigenous Engagement",null,0,0,209999,"N",{"$f":"NOT(ISERROR(MATCH(A68,costCentres,0)))","v":true}]
[184000,"Global Recruitment & Partnerships",null,0,0,209999,"N",{"$f":"NOT(ISERROR(MATCH(A69,costCentres,0)))","v":true}]
[184005,"Global Digital Recruitment",null,0,0,209999,"N",{"$f":"NOT(ISERROR(MATCH(A70,costCentres,0)))","v":true}]
[184010,"Global Partner Recruitment",null,0,0,209999,"N",{"$f":"NOT(ISERROR(MATCH(A71,costCentres,0)))","v":true}]
[184015,"Student Recruitment",null,0,0,209999,"N",{"$f":"NOT(ISERROR(MATCH(A72,costCentres,0)))","v":true}]
[184020,"Global Partnerships",null,0,0,209999,"N",{"$f":"NOT(ISERROR(MATCH(A73,costCentres,0)))","v":true}]
[184025,"Program Quality:  Recruitment",null,0,0,209999,"N",{"$f":"NOT(ISERROR(MATCH(A74,costCentres,0)))","v":true}]
[185000,"VP Research & International",null,0,0,209999,"N",{"$f":"NOT(ISERROR(MATCH(A75,costCentres,0)))","v":true}]
[185005,"Office of Equity, Diversity and Inclusion",null,0,0,209999,"N",{"$f":"NOT(ISERROR(MATCH(A76,costCentres,0)))","v":true}]
[185030,"Indigenous Education",null,0,0,209999,"N",{"$f":"NOT(ISERROR(MATCH(A77,costCentres,0)))","v":true}]
[185080,"Business Development",null,0,0,209999,"N",{"$f":"NOT(ISERROR(MATCH(A78,costCentres,0)))","v":true}]
[186000,"Student Services",null,0,0,209999,"N",{"$f":"NOT(ISERROR(MATCH(A79,costCentres,0)))","v":true}]
[186015,"Financial Aid & Awards",null,0,0,209999,"N",{"$f":"NOT(ISERROR(MATCH(A80,costCentres,0)))","v":true}]
[186040,"SS: Career Learning and Development",null,0,0,209999,"N",{"$f":"NOT(ISERROR(MATCH(A81,costCentres,0)))","v":true}]
[186050,"SS: Student Success",null,0,0,209999,"N",{"$f":"NOT(ISERROR(MATCH(A82,costCentres,0)))","v":true}]
[186060,"SS: Student Engagement",null,0,0,209999,"N",{"$f":"NOT(ISERROR(MATCH(A83,costCentres,0)))","v":true}]
[186070,"BC Graduate Scholarship Program",null,0,0,209999,"N",{"$f":"NOT(ISERROR(MATCH(A84,costCentres,0)))","v":true}]
[200000,"VP Academic Provost",null,0,200001,209912,"N",{"$f":"NOT(ISERROR(MATCH(A85,costCentres,0)))","v":true}]
[200005,"RRU Doctoral Conference",null,0,0,209999,"N",{"$f":"NOT(ISERROR(MATCH(A86,costCentres,0)))","v":true}]
[200100,"Office of Research Services",null,0,0,209999,"N",{"$f":"NOT(ISERROR(MATCH(A87,costCentres,0)))","v":true}]
[200112,"SoES - PBET - Dodd",null,0,0,209999,"N",{"$f":"NOT(ISERROR(MATCH(A88,costCentres,0)))","v":true}]
[200194,"Ethical Reviews",null,0,0,209999,"N",{"$f":"NOT(ISERROR(MATCH(A89,costCentres,0)))","v":true}]
[200226,"RESH - SSHRC - Inst Grant Program",null,0,0,209999,"N",{"$f":"NOT(ISERROR(MATCH(A90,costCentres,0)))","v":true}]
[200227,"RESH - SSHRC - Research Support Fund",null,0,0,209999,"N",{"$f":"NOT(ISERROR(MATCH(A91,costCentres,0)))","v":true}]
[200229,"PCS: Alex J Campbell Fund - Brigham",null,0,0,209999,"N",{"$f":"NOT(ISERROR(MATCH(A92,costCentres,0)))","v":true}]
[200429,"On-line Student Journal - SCC",null,0,0,209999,"N",{"$f":"NOT(ISERROR(MATCH(A93,costCentres,0)))","v":true}]
[200431,"CHLR-HCLABC-Integrated Hlth Ntwks-Research-Dickson",null,0,0,209999,"N",{"$f":"NOT(ISERROR(MATCH(A94,costCentres,0)))","v":true}]
[200432,"CNTR-Thrifty Foods-Buy BC Wild Directory-Belcher",null,0,0,209999,"N",{"$f":"NOT(ISERROR(MATCH(A95,costCentres,0)))","v":true}]
[200433,"CNTR-Manitoba Model Forest Inc-Brigham",null,0,0,209999,"N",{"$f":"NOT(ISERROR(MATCH(A96,costCentres,0)))","v":true}]
[200434,"ES-NSERC-Creatures of Habitat-Dallimore",null,0,0,209999,"N",{"$f":"NOT(ISERROR(MATCH(A97,costCentres,0)))","v":true}]
[200435,"CNTR-NTFP Harvester Training Program-Brigham",null,0,0,209999,"N",{"$f":"NOT(ISERROR(MATCH(A98,costCentres,0)))","v":true}]
[200436,"CHLR-CHLNet Canada Health Inventory",null,0,0,209999,"N",{"$f":"NOT(ISERROR(MATCH(A99,costCentres,0)))","v":true}]
[200437,"CLE-SSHRC-Livelihood Impacts in the Non-Timber Sector Belcher/Brigham",null,0,0,209999,"N",{"$f":"NOT(ISERROR(MATCH(A100,costCentres,0)))","v":true}]
[200438,"CNTR-Health Canada-BC Regional First Nation Environmental Contaminants Prog-Cocksedge",null,0,0,209999,"N",{"$f":"NOT(ISERROR(MATCH(A101,costCentres,0)))","v":true}]
[200439,"CNTR-VanCity-Buy BC Wild-Brigham",null,0,0,209999,"N",{"$f":"NOT(ISERROR(MATCH(A102,costCentres,0)))","v":true}]
[200440,"CNTR-Manitoba Model Forest - Workshops Phase II - Brigham",null,0,0,209999,"N",{"$f":"NOT(ISERROR(MATCH(A103,costCentres,0)))","v":true}]
[200441,"CNTR-TD Friends of the Environment Foundation-Brigham",null,0,0,209999,"N",{"$f":"NOT(ISERROR(MATCH(A104,costCentres,0)))","v":true}]
[200442,"CNTR-IMFN e-directory proposal development-Belcher",null,0,0,209999,"N",{"$f":"NOT(ISERROR(MATCH(A105,costCentres,0)))","v":true}]
[200443,"CHLR-LforL Leadership Development Systematic Review",null,0,0,209999,"N",{"$f":"NOT(ISERROR(MATCH(A106,costCentres,0)))","v":true}]
[200444,"MITACS",null,0,0,209999,"N",{"$f":"NOT(ISERROR(MATCH(A107,costCentres,0)))","v":true}]
[200445,"CNTR FSP Y10 2158 Burns Lake Community Forest Yr2 - Cocksedge",null,0,0,209999,"N",{"$f":"NOT(ISERROR(MATCH(A108,costCentres,0)))","v":true}]
[200446,"CNTR NSFCC NTFP Opportunities Assessment - Brigham",null,0,0,209999,"N",{"$f":"NOT(ISERROR(MATCH(A109,costCentres,0)))","v":true}]
[200448,"CHLR-LforL SDL Evaluation - Dickson",null,0,0,209999,"N",{"$f":"NOT(ISERROR(MATCH(A110,costCentres,0)))","v":true}]
[200449,"ES SSHRC-Citizens on Global Warming & the Enviornment-Kool",null,0,0,209999,"N",{"$f":"NOT(ISERROR(MATCH(A111,costCentres,0)))","v":true}]
[200450,"CTET-BC Campus-RRU Open Ed Resource Initiative-Burgess",null,0,0,209999,"N",{"$f":"NOT(ISERROR(MATCH(A112,costCentres,0)))","v":true}]
[200451,"CHLR-LforL 12 for 12 Evaluation and Expansion - Dickson",null,0,0,209999,"N",{"$f":"NOT(ISERROR(MATCH(A113,costCentres,0)))","v":true}]
[200453,"ES CFI LOF E-Research Platform - Dale",null,0,0,209999,"N",{"$f":"NOT(ISERROR(MATCH(A114,costCentres,0)))","v":true}]
[200498,"CAPITAL SoES CFI/BCKDF Core Sampling - Dallimore",null,0,0,209999,"N",{"$f":"NOT(ISERROR(MATCH(A115,costCentres,0)))","v":true}]
[200500,"CNTR TIDES Commercialization of NTFPs - Brigham",null,0,0,209999,"N",{"$f":"NOT(ISERROR(MATCH(A116,costCentres,0)))","v":true}]
[200502,"CHLR - CHSRF Project",null,0,0,209999,"N",{"$f":"NOT(ISERROR(MATCH(A117,costCentres,0)))","v":true}]
[200503,"RESH - SSHRC General Research Funds",null,0,0,209999,"N",{"$f":"NOT(ISERROR(MATCH(A118,costCentres,0)))","v":true}]
[200504,"RESH - NSERC General Research Funds",null,0,0,209999,"N",{"$f":"NOT(ISERROR(MATCH(A119,costCentres,0)))","v":true}]
[200507,"ES-NSERC(EG) Habitat Model - Dallimore",null,0,0,209999,"N",{"$f":"NOT(ISERROR(MATCH(A120,costCentres,0)))","v":true}]
[200508,"ES-SSHRC MC3 - Dale",null,0,0,209999,"N",{"$f":"NOT(ISERROR(MATCH(A121,costCentres,0)))","v":true}]
[200522,"RESH - Faculty Research Grants",null,0,0,209999,"N",{"$f":"NOT(ISERROR(MATCH(A122,costCentres,0)))","v":true}]
[200551,"SoES CFI LOF IOF #213282- Dale",null,0,0,209999,"N",{"$f":"NOT(ISERROR(MATCH(A123,costCentres,0)))","v":true}]
[200567,"CAPITAL OoS FBC EV Charging Stations-Wilkin",null,0,0,209999,"N",{"$f":"NOT(ISERROR(MATCH(A124,costCentres,0)))","v":true}]
[200570,"Veletsianos - CRC, SoET",null,0,0,209999,"N",{"$f":"NOT(ISERROR(MATCH(A125,costCentres,0)))","v":true}]
[200573,"Veletsianos - CRC, SoET",null,0,0,209999,"N",{"$f":"NOT(ISERROR(MATCH(A126,costCentres,0)))","v":true}]
[200578,"SoES SMU SSHRC Enviro Stewardship-Loucks",null,0,0,209999,"N",{"$f":"NOT(ISERROR(MATCH(A127,costCentres,0)))","v":true}]
[200596,"CAPITAL ES CFI/BCKDF Boat - Dallimore",null,0,0,209999,"N",{"$f":"NOT(ISERROR(MATCH(A128,costCentres,0)))","v":true}]
[200600,"CAPITAL ES CFI/BCKDF - Model for Sust Comm Dev - Dale",null,0,0,209999,"N",{"$f":"NOT(ISERROR(MATCH(A129,costCentres,0)))","v":true}]
[200601,"CS NSRCF - Brigham",null,0,0,209999,"N",{"$f":"NOT(ISERROR(MATCH(A130,costCentres,0)))","v":true}]
[200602,"ES SSHRC CC Imperative - Dale",null,0,0,209999,"N",{"$f":"NOT(ISERROR(MATCH(A131,costCentres,0)))","v":true}]
[200603,"CIS CIFOR Consultancy - Belcher",null,0,0,209999,"N",{"$f":"NOT(ISERROR(MATCH(A132,costCentres,0)))","v":true}]
[200604,"ES CBT Community Resilience - Loucks",null,0,0,209999,"N",{"$f":"NOT(ISERROR(MATCH(A133,costCentres,0)))","v":true}]
[200605,"ES CFI LOF IOF #32042 - Dale",null,0,0,209999,"N",{"$f":"NOT(ISERROR(MATCH(A134,costCentres,0)))","v":true}]
[200606,"ES CFI LOF IOF #31848 - Dallimore",null,0,0,209999,"N",{"$f":"NOT(ISERROR(MATCH(A135,costCentres,0)))","v":true}]
[200622,"Cox AIHS CRIO Pop Resiliency SHS",null,0,0,209999,"N",{"$f":"NOT(ISERROR(MATCH(A136,costCentres,0)))","v":true}]
[200624,"Schissel SSHRC CoIS",null,0,0,209999,"N",{"$f":"NOT(ISERROR(MATCH(A137,costCentres,0)))","v":true}]
[200637,"Dale, CFI, CoLabS, SES",null,0,0,209999,"N",{"$f":"NOT(ISERROR(MATCH(A138,costCentres,0)))","v":true}]
[200638,"Belcher, SSHRC IG, Transdisciplinary Effectiveness, CoIS",null,0,0,209999,"N",{"$f":"NOT(ISERROR(MATCH(A139,costCentres,0)))","v":true}]
[200639,"Vannini, SSHRC IG, Natural Wild Canadian, SCC",null,0,0,209999,"N",{"$f":"NOT(ISERROR(MATCH(A140,costCentres,0)))","v":true}]
[200641,"Richardson, UPEI, SSHRC, SET",null,0,0,209999,"N",{"$f":"NOT(ISERROR(MATCH(A141,costCentres,0)))","v":true}]
[200646,"Hartney, CIHR Indigenous Health Leadership, SoLS",null,0,0,209999,"N",{"$f":"NOT(ISERROR(MATCH(A142,costCentres,0)))","v":true}]
[200647,"Plush, MITACS, Valuing Youth Voices, SHS",null,0,0,209999,"N",{"$f":"NOT(ISERROR(MATCH(A143,costCentres,0)))","v":true}]
[200650,"Cox, Red Cross, Youth Voices Rising, SHS",null,0,0,209999,"N",{"$f":"NOT(ISERROR(MATCH(A144,costCentres,0)))","v":true}]
[200652,"CAPITAL Dodd, CFI Mass Spectrometer, SoES",null,0,0,209999,"N",{"$f":"NOT(ISERROR(MATCH(A145,costCentres,0)))","v":true}]
[200658,"Cox,SSHRC Insight, SHS",null,0,0,209999,"N",{"$f":"NOT(ISERROR(MATCH(A146,costCentres,0)))","v":true}]
[200661,"Dodd, CFI IOF: Mass Spectrometer, SES",null,0,0,209999,"N",{"$f":"NOT(ISERROR(MATCH(A147,costCentres,0)))","v":true}]
[200663,"Hartney, School District 61, SLS",null,0,0,209999,"N",{"$f":"NOT(ISERROR(MATCH(A148,costCentres,0)))","v":true}]
[200664,"Hartney, CIHR Project, DESTINED, SLS",null,0,0,209999,"N",{"$f":"NOT(ISERROR(MATCH(A149,costCentres,0)))","v":true}]
[200665,"Banting-Newell, SES",null,0,0,209999,"N",{"$f":"NOT(ISERROR(MATCH(A150,costCentres,0)))","v":true}]
[200666,"Mittelman, SSHRC IDG, Exploration Chartiable Giving, SoB",null,0,0,209999,"N",{"$f":"NOT(ISERROR(MATCH(A151,costCentres,0)))","v":true}]
[200667,"Bird, Canada History Fund, War Memories Across Canada, Episode III, STHM",null,0,0,209999,"N",{"$f":"NOT(ISERROR(MATCH(A152,costCentres,0)))","v":true}]
[200668,"Pulla SSHRC IDB Social Licensing CoIS",null,0,0,209999,"N",{"$f":"NOT(ISERROR(MATCH(A153,costCentres,0)))","v":true}]
[200669,"Dale, SSHRC IDG, Research Curation, SES",null,0,0,209999,"N",{"$f":"NOT(ISERROR(MATCH(A154,costCentres,0)))","v":true}]
[200670,"Veletsianos, SSHRC IDG, Female Faculty and Online Harassment, SET",null,0,0,209999,"N",{"$f":"NOT(ISERROR(MATCH(A155,costCentres,0)))","v":true}]
[200671,"Dallimore, Gov't of NWT, Coastal Mapping, SES",null,0,0,209999,"N",{"$f":"NOT(ISERROR(MATCH(A156,costCentres,0)))","v":true}]
[200672,"Taylor, Canadian Values in Action, SLS",null,0,0,209999,"N",{"$f":"NOT(ISERROR(MATCH(A157,costCentres,0)))","v":true}]
[200673,"Pulla, SSHRC UVic: Reclaiming language through theatre, CIS",null,0,0,209999,"N",{"$f":"NOT(ISERROR(MATCH(A158,costCentres,0)))","v":true}]
[200674,"Dodd, Lundin, SES",null,0,0,209999,"N",{"$f":"NOT(ISERROR(MATCH(A159,costCentres,0)))","v":true}]
[200675,"Dallimore, PromoSci2018, SES",null,0,0,209999,"N",{"$f":"NOT(ISERROR(MATCH(A160,costCentres,0)))","v":true}]
[200676,"Bird, Wilderness Tourism Association, STHM",null,0,0,209999,"N",{"$f":"NOT(ISERROR(MATCH(A161,costCentres,0)))","v":true}]
[200677,"Hartney,MSFHR CS, SLS",null,0,0,209999,"N",{"$f":"NOT(ISERROR(MATCH(A162,costCentres,0)))","v":true}]
[200679,"King, SSHRC IG, SES",null,0,0,209999,"N",{"$f":"NOT(ISERROR(MATCH(A163,costCentres,0)))","v":true}]
[200680,"Rekar Munro, SSHRC IG, FoM",null,0,0,209999,"N",{"$f":"NOT(ISERROR(MATCH(A164,costCentres,0)))","v":true}]
[200682,"Takach, SSHRC IDG, Interweaving Traditional Ecological Knowledge, SCC",null,0,0,209999,"N",{"$f":"NOT(ISERROR(MATCH(A165,costCentres,0)))","v":true}]
[200684,"Prasad, SSHRC IDG, Determinants motivating diaspora entrepreneurs, SoB",null,0,0,209999,"N",{"$f":"NOT(ISERROR(MATCH(A166,costCentres,0)))","v":true}]
[200685,"Dallimore, Gov't NWT, Geologic Investigation, Village of Tuktoyaktuk, SES",null,0,0,209999,"N",{"$f":"NOT(ISERROR(MATCH(A167,costCentres,0)))","v":true}]
[200686,"Veletsianos, CRC, CRC Renewal, SET",null,0,0,209999,"N",{"$f":"NOT(ISERROR(MATCH(A168,costCentres,0)))","v":true}]
[200687,"Dale, UFV, SES",null,0,0,209999,"N",{"$f":"NOT(ISERROR(MATCH(A169,costCentres,0)))","v":true}]
[200688,"Hodson, MITACS, CIS",null,0,0,209999,"N",{"$f":"NOT(ISERROR(MATCH(A170,costCentres,0)))","v":true}]
[200689,"Hartney, SSHRC Connection, SoLS",null,0,0,209999,"N",{"$f":"NOT(ISERROR(MATCH(A171,costCentres,0)))","v":true}]
[200690,"Dallimore, NRCan, SES",null,0,0,209999,"N",{"$f":"NOT(ISERROR(MATCH(A172,costCentres,0)))","v":true}]
[200691,"Cox, NRCan, SHS",null,0,0,209999,"N",{"$f":"NOT(ISERROR(MATCH(A173,costCentres,0)))","v":true}]
[200692,"Belcher, PowerToBE TOC Facilitation, CIS",null,0,0,209999,"N",{"$f":"NOT(ISERROR(MATCH(A174,costCentres,0)))","v":true}]
[200693,"Belcher, Ashoka Research Chair, CIS",null,0,0,209999,"N",{"$f":"NOT(ISERROR(MATCH(A175,costCentres,0)))","v":true}]
[200694,"Bird, MNR Heritage, Workshop STHS",null,0,0,209999,"N",{"$f":"NOT(ISERROR(MATCH(A176,costCentres,0)))","v":true}]
[200696,"Kajzer Mitchell & Zidulka, Ministry of Health, SoB",null,0,0,209999,"N",{"$f":"NOT(ISERROR(MATCH(A177,costCentres,0)))","v":true}]
[200697,"Newell, SSHRC, PEG, SES",null,0,0,209999,"N",{"$f":"NOT(ISERROR(MATCH(A178,costCentres,0)))","v":true}]
[200698,"RESH NSRC EDICap",null,0,0,209999,"N",{"$f":"NOT(ISERROR(MATCH(A179,costCentres,0)))","v":true}]
[200699,"Cox, BCCAS, SHS",null,0,0,209999,"N",{"$f":"NOT(ISERROR(MATCH(A180,costCentres,0)))","v":true}]
[200700,"RESH: Global Advancement & Diversity Fund (Fdn #104)",null,0,0,209999,"N",{"$f":"NOT(ISERROR(MATCH(A181,costCentres,0)))","v":true}]
[200701,"RESH: Buttedahl Skene Fund (Fdn)",null,0,0,209999,"N",{"$f":"NOT(ISERROR(MATCH(A182,costCentres,0)))","v":true}]
[200702,"RESH: Teaching with Technology (TWT) - Faculty",null,0,0,209999,"N",{"$f":"NOT(ISERROR(MATCH(A183,costCentres,0)))","v":true}]
[200703,"RESH: Internal Research Grants (IGR) - Faculty",null,0,0,209999,"N",{"$f":"NOT(ISERROR(MATCH(A184,costCentres,0)))","v":true}]
[200704,"RESH: Conference Seed Fund (CSF)",null,0,0,209999,"N",{"$f":"NOT(ISERROR(MATCH(A185,costCentres,0)))","v":true}]
[200705,"RESH, Ministry of Health (MOH), ORS",null,0,0,209999,"N",{"$f":"NOT(ISERROR(MATCH(A186,costCentres,0)))","v":true}]
[200706,"Restricted Research Funds",null,0,0,209999,"N",{"$f":"NOT(ISERROR(MATCH(A187,costCentres,0)))","v":true}]
[200707,"RESH: SSHRC SIG 22-25, ORS",null,0,0,209999,"N",{"$f":"NOT(ISERROR(MATCH(A188,costCentres,0)))","v":true}]
[200710,"RESH: Overhead and Indirect Costs, ORS",null,0,0,209999,"N",{"$f":"NOT(ISERROR(MATCH(A189,costCentres,0)))","v":true}]
[200720,"Mitac _ Wasdani Parsad SoB",null,0,0,209999,"N",{"$f":"NOT(ISERROR(MATCH(A190,costCentres,0)))","v":true}]
[200721,"Mitac_Heykoop, Vancouver Foundation, SoL",null,0,0,209999,"N",{"$f":"NOT(ISERROR(MATCH(A191,costCentres,0)))","v":true}]
[200722,"DALE CFIIOF CoLabs SES",null,0,0,209999,"N",{"$f":"NOT(ISERROR(MATCH(A192,costCentres,0)))","v":true}]
[200723,"Hartney, Van Foundation, Dementia, SLS",null,0,0,209999,"N",{"$f":"NOT(ISERROR(MATCH(A193,costCentres,0)))","v":true}]
[200724,"Heykoop, Micahel Smith convene, SoL",null,0,0,209999,"N",{"$f":"NOT(ISERROR(MATCH(A194,costCentres,0)))","v":true}]
[200725,"Homer-Dixon,McConell, Cascade, SES",null,0,0,209999,"N",{"$f":"NOT(ISERROR(MATCH(A195,costCentres,0)))","v":true}]
[200726,"Homer-Dixon,Winslow,Cascade, SES",null,0,0,209999,"N",{"$f":"NOT(ISERROR(MATCH(A196,costCentres,0)))","v":true}]
[200727,"Dale, Ryerson, SES",null,0,0,209999,"N",{"$f":"NOT(ISERROR(MATCH(A197,costCentres,0)))","v":true}]
[200728,"Madan, City of Colwood, SHS",null,0,0,209999,"N",{"$f":"NOT(ISERROR(MATCH(A198,costCentres,0)))","v":true}]
[200729,"Hodson, SSHRC Connection, CIS",null,0,0,209999,"N",{"$f":"NOT(ISERROR(MATCH(A199,costCentres,0)))","v":true}]
[200730,"Dale, CAGS, Student Roundtable, SES",null,0,0,209999,"N",{"$f":"NOT(ISERROR(MATCH(A200,costCentres,0)))","v":true}]
[200733,"Veletsianos, CIHR, COVID19, SET",null,0,0,209999,"N",{"$f":"NOT(ISERROR(MATCH(A201,costCentres,0)))","v":true}]
[200734,"Hodson, SSHRC Insight, CIS",null,0,0,209999,"N",{"$f":"NOT(ISERROR(MATCH(A202,costCentres,0)))","v":true}]
[200735,"DAS, SSHRC PEG, Low-carbon, CIS",null,0,0,209999,"N",{"$f":"NOT(ISERROR(MATCH(A203,costCentres,0)))","v":true}]
[200736,"Bernard, SSHRC, Applied Doctorial Research, COIS",null,0,0,209999,"N",{"$f":"NOT(ISERROR(MATCH(A204,costCentres,0)))","v":true}]
[200737,"Cox, SSHRC Insight, SHS",null,0,0,209999,"N",{"$f":"NOT(ISERROR(MATCH(A205,costCentres,0)))","v":true}]
[200738,"BIRD, Misc, STHM",null,0,0,209999,"N",{"$f":"NOT(ISERROR(MATCH(A206,costCentres,0)))","v":true}]
[200739,"HomerDixon, McConnel WGSI, Cascade",null,0,0,209999,"N",{"$f":"NOT(ISERROR(MATCH(A207,costCentres,0)))","v":true}]
[200740,"Deimling & Hill, Mindful Campuses 2020, HR/ORS",null,0,0,209999,"N",{"$f":"NOT(ISERROR(MATCH(A208,costCentres,0)))","v":true}]
[200741,"Hartney, Cdn Frailty Network, SLS",null,0,0,209999,"N",{"$f":"NOT(ISERROR(MATCH(A209,costCentres,0)))","v":true}]
[200743,"Hodson, CRC, CIS",null,0,0,209999,"N",{"$f":"NOT(ISERROR(MATCH(A210,costCentres,0)))","v":true}]
[200744,"Hachigian, SSHRC PEG, FoM",null,0,0,209999,"N",{"$f":"NOT(ISERROR(MATCH(A211,costCentres,0)))","v":true}]
[200745,"CLOSED WilsonMah, BCcampus, STHM",null,0,0,209999,"N",{"$f":"NOT(ISERROR(MATCH(A212,costCentres,0)))","v":true}]
[200746,"CLOSED RRU, NSERC, EDICAP Stipend",null,0,0,209999,"N",{"$f":"NOT(ISERROR(MATCH(A213,costCentres,0)))","v":true}]
[200747,"WilsonMah, Selkirk College, STHM",null,0,0,209999,"N",{"$f":"NOT(ISERROR(MATCH(A214,costCentres,0)))","v":true}]
[200748,"Veletsianos, SSHRC IDG, Future of Higher Education, SET",null,0,0,209999,"N",{"$f":"NOT(ISERROR(MATCH(A215,costCentres,0)))","v":true}]
[200749,"Steenkamp, CRCEWF, Research Services",null,0,0,209999,"N",{"$f":"NOT(ISERROR(MATCH(A216,costCentres,0)))","v":true}]
[200750,"Research Targets - External",null,0,0,209999,"N",{"$f":"NOT(ISERROR(MATCH(A217,costCentres,0)))","v":true}]
[200751,"Das, SSHRC,PDG CMHC",null,0,0,209999,"N",{"$f":"NOT(ISERROR(MATCH(A218,costCentres,0)))","v":true}]
[200752,"Hartney, CHLNet, COVID19 Leading Through Crisis, SLS",null,0,0,209999,"N",{"$f":"NOT(ISERROR(MATCH(A219,costCentres,0)))","v":true}]
[200753,"Hodson, SSHRC - Ryerson, Anti-Social Social Media, CIS",null,0,0,209999,"N",{"$f":"NOT(ISERROR(MATCH(A220,costCentres,0)))","v":true}]
[200754,"Cox, NRCAN, Climate Course, SHS",null,0,0,209999,"N",{"$f":"NOT(ISERROR(MATCH(A221,costCentres,0)))","v":true}]
[200755,"MacArthur, Tier2 CRC, SoB",null,0,0,209999,"N",{"$f":"NOT(ISERROR(MATCH(A222,costCentres,0)))","v":true}]
[200756,"Rowe, SSHRC, COVID-19 Stress Adaptation for Teachers, SLS",null,0,0,209999,"N",{"$f":"NOT(ISERROR(MATCH(A223,costCentres,0)))","v":true}]
[200758,"Homer-Dixon, General/Misc, Cascade Institute",null,0,0,209999,"N",{"$f":"NOT(ISERROR(MATCH(A224,costCentres,0)))","v":true}]
[200761,"Furukawa, Mitacs PostDoc, ORS",null,0,0,209999,"N",{"$f":"NOT(ISERROR(MATCH(A225,costCentres,0)))","v":true}]
[200762,"Hodson, SSHRC KSG, A New Glass Ceiling, CIS",null,0,0,209999,"N",{"$f":"NOT(ISERROR(MATCH(A226,costCentres,0)))","v":true}]
[200763,"Pulla, SSHRC SFU, HLCS, CIS",null,0,0,209999,"N",{"$f":"NOT(ISERROR(MATCH(A227,costCentres,0)))","v":true}]
[200764,"Madan, ELHRA, SHS",null,0,0,209999,"N",{"$f":"NOT(ISERROR(MATCH(A228,costCentres,0)))","v":true}]
[200765,"Jones, SSHRC PEG, CIS",null,0,0,209999,"N",{"$f":"NOT(ISERROR(MATCH(A229,costCentres,0)))","v":true}]
[200766,"Hartney, SSHRC PEG, SLS",null,0,0,209999,"N",{"$f":"NOT(ISERROR(MATCH(A230,costCentres,0)))","v":true}]
[200767,"Cox, CRI, SHS",null,0,0,209999,"N",{"$f":"NOT(ISERROR(MATCH(A231,costCentres,0)))","v":true}]
[200768,"Cox, NRCan Platofrm, SHS",null,0,0,209999,"N",{"$f":"NOT(ISERROR(MATCH(A232,costCentres,0)))","v":true}]
[200769,"Irwin, MCICFIT, Malawi, FoM",null,0,0,209999,"N",{"$f":"NOT(ISERROR(MATCH(A233,costCentres,0)))","v":true}]
[200770,"Dale, SSHRC IG, SES",null,0,0,209999,"N",{"$f":"NOT(ISERROR(MATCH(A234,costCentres,0)))","v":true}]
[200771,"Hachigian, Vancouver Foundation SCG, FoM",null,0,0,209999,"N",{"$f":"NOT(ISERROR(MATCH(A235,costCentres,0)))","v":true}]
[200772,"Homer-Dixon, McConnell, Cascade, SES",null,0,0,209999,"N",{"$f":"NOT(ISERROR(MATCH(A236,costCentres,0)))","v":true}]
[200773,"Walinga, SSHRC PEG (Own the Podium), SCC",null,0,0,209999,"N",{"$f":"NOT(ISERROR(MATCH(A237,costCentres,0)))","v":true}]
[200774,"Slick, CWF GBV Pandemic Study, SHS",null,0,0,209999,"N",{"$f":"NOT(ISERROR(MATCH(A238,costCentres,0)))","v":true}]
[200775,"Lokanan, SSHRC IDG, SoB",null,0,0,209999,"N",{"$f":"NOT(ISERROR(MATCH(A239,costCentres,0)))","v":true}]
[200776,"Smith-Carrier, CRC Tier 2, SHS",null,0,0,209999,"N",{"$f":"NOT(ISERROR(MATCH(A240,costCentres,0)))","v":true}]
[200777,"Manion, WorkBC with ZeroCeiling, SHS",null,0,0,209999,"N",{"$f":"NOT(ISERROR(MATCH(A241,costCentres,0)))","v":true}]
[200779,"Dodd, BC Gov Windy Craggy, SES",null,0,0,209999,"N",{"$f":"NOT(ISERROR(MATCH(A242,costCentres,0)))","v":true}]
[200780,"Heykoop, MSFHR Scholar, SLS",null,0,0,209999,"N",{"$f":"NOT(ISERROR(MATCH(A243,costCentres,0)))","v":true}]
[200781,"Smith-Carrier, SSHRC Insight, SHS",null,0,0,209999,"N",{"$f":"NOT(ISERROR(MATCH(A244,costCentres,0)))","v":true}]
[200782,"Belcher, Leuphana Fellowship, CIS",null,0,0,209999,"N",{"$f":"NOT(ISERROR(MATCH(A245,costCentres,0)))","v":true}]
[200783,"Prasad, CRC Renewal, FoM",null,0,0,209999,"N",{"$f":"NOT(ISERROR(MATCH(A246,costCentres,0)))","v":true}]
[200784,"Belcher, ICARDA Contract, CIS",null,0,0,209999,"N",{"$f":"NOT(ISERROR(MATCH(A247,costCentres,0)))","v":true}]
[200785,"Dodd, Health Canada, SET",null,0,0,209999,"N",{"$f":"NOT(ISERROR(MATCH(A248,costCentres,0)))","v":true}]
[200786,"Coulter, Mitacs Accelerate PostDoc, SHS",null,0,0,209999,"N",{"$f":"NOT(ISERROR(MATCH(A249,costCentres,0)))","v":true}]
[200787,"Wolfe, SSHRC IDG, SET",null,0,0,209999,"N",{"$f":"NOT(ISERROR(MATCH(A250,costCentres,0)))","v":true}]
[200788,"Wolfe, SSHRC Insight, SET",null,0,0,209999,"N",{"$f":"NOT(ISERROR(MATCH(A251,costCentres,0)))","v":true}]
[200789,"Wolfe, SSHRC PD, SET",null,0,0,209999,"N",{"$f":"NOT(ISERROR(MATCH(A252,costCentres,0)))","v":true}]
[200790,"MacArthur, SSHRC Connection, FoM",null,0,0,209999,"N",{"$f":"NOT(ISERROR(MATCH(A253,costCentres,0)))","v":true}]
[200791,"Dallimore, NSERC PromoScience 2022, SES",null,0,0,209999,"N",{"$f":"NOT(ISERROR(MATCH(A254,costCentres,0)))","v":true}]
[200792,"Lokanan, NFREF Thriving Organizations, FoM",null,0,0,209999,"N",{"$f":"NOT(ISERROR(MATCH(A255,costCentres,0)))","v":true}]
[200793,"Cox, CRI, SHS",null,0,0,209999,"N",{"$f":"NOT(ISERROR(MATCH(A256,costCentres,0)))","v":true}]
[200794,"Steenkamp, CRC EDI, ORS",null,0,0,209999,"N",{"$f":"NOT(ISERROR(MATCH(A257,costCentres,0)))","v":true}]
[200795,"Veletsianos, SSHRC RGDI, SET",null,0,0,209999,"N",{"$f":"NOT(ISERROR(MATCH(A258,costCentres,0)))","v":true}]
[200796,"Das, SSHRC Insight, CIS",null,0,0,209999,"N",{"$f":"NOT(ISERROR(MATCH(A259,costCentres,0)))","v":true}]
[200797,"Jones, SSHRC Insight, CIS",null,0,0,209999,"N",{"$f":"NOT(ISERROR(MATCH(A260,costCentres,0)))","v":true}]
[200798,"Newell, Tier 2 CRC, SES",null,0,0,209999,"N",{"$f":"NOT(ISERROR(MATCH(A261,costCentres,0)))","v":true}]
[200799,"Vannini, SSHRC IDG, SCC",null,0,0,209999,"N",{"$f":"NOT(ISERROR(MATCH(A262,costCentres,0)))","v":true}]
[200800,"General Restricted Research Funds",null,0,0,209999,"N",{"$f":"NOT(ISERROR(MATCH(A263,costCentres,0)))","v":true}]
[200801,"Dale - Restricted Research Fund - SoES",null,0,0,209999,"N",{"$f":"NOT(ISERROR(MATCH(A264,costCentres,0)))","v":true}]
[200802,"Dodd - Restricted Research Funds - SoES",null,0,0,209999,"N",{"$f":"NOT(ISERROR(MATCH(A265,costCentres,0)))","v":true}]
[200803,"Taylor - Restricted Research Funds - SoLS",null,0,0,209999,"N",{"$f":"NOT(ISERROR(MATCH(A266,costCentres,0)))","v":true}]
[200804,"Hamilton - Restricted Research Funds - SoET",null,0,0,209999,"N",{"$f":"NOT(ISERROR(MATCH(A267,costCentres,0)))","v":true}]
[200805,"Cox - Restricted Research Funds - SoHS",null,0,0,209999,"N",{"$f":"NOT(ISERROR(MATCH(A268,costCentres,0)))","v":true}]
[200807,"Slick - Restricted Research Funds - SoHS",null,0,0,209999,"N",{"$f":"NOT(ISERROR(MATCH(A269,costCentres,0)))","v":true}]
[200808,"Veletsianos (CRC) - Restricted Research Funds - SoET",null,0,0,209999,"N",{"$f":"NOT(ISERROR(MATCH(A270,costCentres,0)))","v":true}]
[200809,"Belcher (CRC) - Restricted Research Funds - CoIS",null,0,0,209999,"N",{"$f":"NOT(ISERROR(MATCH(A271,costCentres,0)))","v":true}]
[200810,"Bird - Restricted Research Funds - SoTHM",null,0,0,209999,"N",{"$f":"NOT(ISERROR(MATCH(A272,costCentres,0)))","v":true}]
[200811,"White - Restricted Research Funds - SoTHM",null,0,0,209999,"N",{"$f":"NOT(ISERROR(MATCH(A273,costCentres,0)))","v":true}]
[200812,"Thomlinson - Restricted Research Funds - SoTHM",null,0,0,209999,"N",{"$f":"NOT(ISERROR(MATCH(A274,costCentres,0)))","v":true}]
[200813,"Young - Restricted Research Funds - SoHS",null,0,0,209999,"N",{"$f":"NOT(ISERROR(MATCH(A275,costCentres,0)))","v":true}]
[200814,"Wilson-Mah - Restricted Research Funds - SoTHM",null,0,0,209999,"N",{"$f":"NOT(ISERROR(MATCH(A276,costCentres,0)))","v":true}]
[200815,"Dallimore - Restricted Research Funds - SES",null,0,0,209999,"N",{"$f":"NOT(ISERROR(MATCH(A277,costCentres,0)))","v":true}]
[200816,"Moran - Restricted Research Funds - SoES",null,0,0,209999,"N",{"$f":"NOT(ISERROR(MATCH(A278,costCentres,0)))","v":true}]
[200817,"Hartney - Restricted Research Funds - SoLS",null,0,0,209999,"N",{"$f":"NOT(ISERROR(MATCH(A279,costCentres,0)))","v":true}]
[200818,"KajzerMitchell - Restricted Research Funds - SoB",null,0,0,209999,"N",{"$f":"NOT(ISERROR(MATCH(A280,costCentres,0)))","v":true}]
[200819,"Zidulka - Restricted Research Funds - SoB",null,0,0,209999,"N",{"$f":"NOT(ISERROR(MATCH(A281,costCentres,0)))","v":true}]
[200820,"Research - Misc",null,0,0,209999,"N",{"$f":"NOT(ISERROR(MATCH(A282,costCentres,0)))","v":true}]
[200822,"Unsal, SSHRC IDG, SCC",null,0,0,209999,"N",{"$f":"NOT(ISERROR(MATCH(A283,costCentres,0)))","v":true}]
[200823,"Smith-Carrier, SSHRC IDG, SoHS",null,0,0,209999,"N",{"$f":"NOT(ISERROR(MATCH(A284,costCentres,0)))","v":true}]
[200824,"Bird, City of Victoria, SCC",null,0,0,209999,"N",{"$f":"NOT(ISERROR(MATCH(A285,costCentres,0)))","v":true}]
[200825,"Newell, SSHRC Insight, SES",null,0,0,209999,"N",{"$f":"NOT(ISERROR(MATCH(A286,costCentres,0)))","v":true}]
[200826,"Newell, NFRFR, SES",null,0,0,209999,"N",{"$f":"NOT(ISERROR(MATCH(A287,costCentres,0)))","v":true}]
[200827,"Heykoop, Pediatric RI, SLS",null,0,0,209999,"N",{"$f":"NOT(ISERROR(MATCH(A288,costCentres,0)))","v":true}]
[200828,"Homer-Dixon; Rasmussen; Cascade",null,0,0,209999,"N",{"$f":"NOT(ISERROR(MATCH(A289,costCentres,0)))","v":true}]
[200829,"Cox, ECCC, SHS",null,0,0,209999,"N",{"$f":"NOT(ISERROR(MATCH(A290,costCentres,0)))","v":true}]
[200830,"Belcher, WorldFish, CIS",null,0,0,209999,"N",{"$f":"NOT(ISERROR(MATCH(A291,costCentres,0)))","v":true}]
[200831,"Axe, Vic Fdtn, CIS",null,0,0,209999,"N",{"$f":"NOT(ISERROR(MATCH(A292,costCentres,0)))","v":true}]
[200832,"Homer Dixon, Ivey Fdtn GeoThermal, Cascade",null,0,0,209999,"N",{"$f":"NOT(ISERROR(MATCH(A293,costCentres,0)))","v":true}]
[200833,"Homer Dixon, Metcalf PermaFrost, Cascade",null,0,0,209999,"N",{"$f":"NOT(ISERROR(MATCH(A294,costCentres,0)))","v":true}]
[200834,"Manion, UN EVAC, SHS",null,0,0,209999,"N",{"$f":"NOT(ISERROR(MATCH(A295,costCentres,0)))","v":true}]
[200835,"Young, VanFnd, Dogs & Guardians",null,0,0,209999,"N",{"$f":"NOT(ISERROR(MATCH(A296,costCentres,0)))","v":true}]
[200836,"Walinga, ViaSport BC, Safe Sport Behaviour, SCC",null,0,0,209999,"N",{"$f":"NOT(ISERROR(MATCH(A297,costCentres,0)))","v":true}]
[200837,"Remillard, SSHRC Con., Ethical Communications , SCC",null,0,0,209999,"N",{"$f":"NOT(ISERROR(MATCH(A298,costCentres,0)))","v":true}]
[200838,"Hachigian, SSHRC Connection, SoB",null,0,0,209999,"N",{"$f":"NOT(ISERROR(MATCH(A299,costCentres,0)))","v":true}]
[200839,"Smith Carrier, NFREF, SHS",null,0,0,209999,"N",{"$f":"NOT(ISERROR(MATCH(A300,costCentres,0)))","v":true}]
[200840,"Homer-Dixon, Winslow II, Cascade",null,0,0,209999,"N",{"$f":"NOT(ISERROR(MATCH(A301,costCentres,0)))","v":true}]
[200841,"Steenkamp, CRCES II, Research",null,0,0,209999,"N",{"$f":"NOT(ISERROR(MATCH(A302,costCentres,0)))","v":true}]
[200842,"Pozzobon, CC Police Reform, SoLS",null,0,0,209999,"N",{"$f":"NOT(ISERROR(MATCH(A303,costCentres,0)))","v":true}]
[200843,"Irwin, FIT SoB",null,0,0,209999,"N",{"$f":"NOT(ISERROR(MATCH(A304,costCentres,0)))","v":true}]
[200844,"Heykoop, NFRF, Transforming AYA Cancer, SLS",null,0,0,209999,"N",{"$f":"NOT(ISERROR(MATCH(A305,costCentres,0)))","v":true}]
[201100,"Climate Leadership",null,0,0,209999,"N",{"$f":"NOT(ISERROR(MATCH(A306,costCentres,0)))","v":true}]
[201101,"UN SDGs",null,0,0,209999,"N",{"$f":"NOT(ISERROR(MATCH(A307,costCentres,0)))","v":true}]
[201102,"Ashoka",null,0,0,209999,"N",{"$f":"NOT(ISERROR(MATCH(A308,costCentres,0)))","v":true}]
[201103,"Belcher Research",null,0,0,209999,"N",{"$f":"NOT(ISERROR(MATCH(A309,costCentres,0)))","v":true}]
[211000,"Registration Services",null,0,0,209999,"N",{"$f":"NOT(ISERROR(MATCH(A310,costCentres,0)))","v":true}]
[211050,"International Admissions",null,0,0,209999,"N",{"$f":"NOT(ISERROR(MATCH(A311,costCentres,0)))","v":true}]
[212000,"Convocation",null,0,200001,209912,"N",{"$f":"NOT(ISERROR(MATCH(A312,costCentres,0)))","v":true}]
[213000,"Registrar's Office",null,0,0,209999,"N",{"$f":"NOT(ISERROR(MATCH(A313,costCentres,0)))","v":true}]
[213005,"Admissions",null,0,0,209999,"N",{"$f":"NOT(ISERROR(MATCH(A314,costCentres,0)))","v":true}]
[213010,"Enrolment Services",null,0,0,209999,"N",{"$f":"NOT(ISERROR(MATCH(A315,costCentres,0)))","v":true}]
[215000,"Faculty Affairs",null,0,0,209999,"N",{"$f":"NOT(ISERROR(MATCH(A316,costCentres,0)))","v":true}]
[221000,"Library Services",null,0,200001,209912,"N",{"$f":"NOT(ISERROR(MATCH(A317,costCentres,0)))","v":true}]
[221051,"Library - Program Development",null,0,0,209999,"N",{"$f":"NOT(ISERROR(MATCH(A318,costCentres,0)))","v":true}]
[222100,"CTET",null,0,0,209999,"N",{"$f":"NOT(ISERROR(MATCH(A319,costCentres,0)))","v":true}]
[222151,"CTET - Program Quality",null,0,0,209999,"N",{"$f":"NOT(ISERROR(MATCH(A320,costCentres,0)))","v":true}]
[223000,"Textbook Services",null,0,200001,209912,"N",{"$f":"NOT(ISERROR(MATCH(A321,costCentres,0)))","v":true}]
[230000,"AVP: Student and Academic Services",null,0,0,209999,"N",{"$f":"NOT(ISERROR(MATCH(A322,costCentres,0)))","v":true}]
[250000,"School of Tourism & Hospitality Management",null,0,0,209999,"N",{"$f":"NOT(ISERROR(MATCH(A323,costCentres,0)))","v":true}]
[250001,"School of T&HM - Research",null,0,0,209999,"N",{"$f":"NOT(ISERROR(MATCH(A324,costCentres,0)))","v":true}]
[250002,"School of T&HM - Service",null,0,0,209999,"N",{"$f":"NOT(ISERROR(MATCH(A325,costCentres,0)))","v":true}]
[250005,"SoTHM Case Competition Competing Team",null,0,0,209999,"N",{"$f":"NOT(ISERROR(MATCH(A326,costCentres,0)))","v":true}]
[250200,"BA International Hotel Management - On Campus",null,0,0,209999,"N",{"$f":"NOT(ISERROR(MATCH(A327,costCentres,0)))","v":true}]
[250250,"BA International Hotel Management - Online",null,0,0,209999,"N",{"$f":"NOT(ISERROR(MATCH(A328,costCentres,0)))","v":true}]
[250750,"MA Tourism Management - On Campus",null,0,0,209999,"N",{"$f":"NOT(ISERROR(MATCH(A329,costCentres,0)))","v":true}]
[250800,"BA Global Tourism Management",null,0,0,209999,"N",{"$f":"NOT(ISERROR(MATCH(A330,costCentres,0)))","v":true}]
[250850,"MA & Cert Tourism Management - Blended",null,0,0,209999,"N",{"$f":"NOT(ISERROR(MATCH(A331,costCentres,0)))","v":true}]
[250950,"Year 2 Tourism Programs",null,0,0,209999,"N",{"$f":"NOT(ISERROR(MATCH(A332,costCentres,0)))","v":true}]
[260000,"Media Support Services",null,0,200001,209912,"N",{"$f":"NOT(ISERROR(MATCH(A333,costCentres,0)))","v":true}]
[320100,"MA & Dip Learning and Technology",null,0,0,209999,"N",{"$f":"NOT(ISERROR(MATCH(A334,costCentres,0)))","v":true}]
[400000,"School of Environment and Sustainability - Management",null,0,200001,209912,"N",{"$f":"NOT(ISERROR(MATCH(A335,costCentres,0)))","v":true}]
[400001,"School of Environment and Sustainability - Research",null,0,0,209999,"N",{"$f":"NOT(ISERROR(MATCH(A336,costCentres,0)))","v":true}]
[400002,"School of Environment and Sustainability - Service",null,0,0,209999,"N",{"$f":"NOT(ISERROR(MATCH(A337,costCentres,0)))","v":true}]
[405000,"BA/BSc & Cert in Environmental Practice",null,0,0,209999,"N",{"$f":"NOT(ISERROR(MATCH(A338,costCentres,0)))","v":true}]
[405100,"MA/MSc in Environmental Practice",null,0,0,209999,"N",{"$f":"NOT(ISERROR(MATCH(A339,costCentres,0)))","v":true}]
[405200,"CCEE - Management",null,0,0,209999,"N",{"$f":"NOT(ISERROR(MATCH(A340,costCentres,0)))","v":true}]
[405300,"SoES: ECO Canada Contract Indigenous Certificate Development",null,0,0,209999,"N",{"$f":"NOT(ISERROR(MATCH(A341,costCentres,0)))","v":true}]
[405400,"Graduate Certificate in Science and Policy of Climate Change",null,0,0,209999,"N",{"$f":"NOT(ISERROR(MATCH(A342,costCentres,0)))","v":true}]
[410000,"BSc in Environmental Science",null,0,200001,209912,"N",{"$f":"NOT(ISERROR(MATCH(A343,costCentres,0)))","v":true}]
[410500,"BSc in Environmental Science - Blended",null,0,200001,209912,"N",{"$f":"NOT(ISERROR(MATCH(A344,costCentres,0)))","v":true}]
[430000,"MA / MSc in Environment & Management-Blended",null,0,200001,209912,"N",{"$f":"NOT(ISERROR(MATCH(A345,costCentres,0)))","v":true}]
[430050,"MA/MSc in Environment and Management-On Campus",null,0,0,209999,"N",{"$f":"NOT(ISERROR(MATCH(A346,costCentres,0)))","v":true}]
[450000,"BSc - Major Student Projects",null,0,200001,209912,"N",{"$f":"NOT(ISERROR(MATCH(A347,costCentres,0)))","v":true}]
[460016,"Student Research Grants",null,0,0,209999,"N",{"$f":"NOT(ISERROR(MATCH(A348,costCentres,0)))","v":true}]
[470000,"MA, Dip & Cert: Environmental Ed and Communication",null,0,0,209999,"N",{"$f":"NOT(ISERROR(MATCH(A349,costCentres,0)))","v":true}]
[500000,"Faculty of Management",null,0,200001,209912,"N",{"$f":"NOT(ISERROR(MATCH(A350,costCentres,0)))","v":true}]
[500200,"FoM: School of Business",null,0,0,209999,"N",{"$f":"NOT(ISERROR(MATCH(A351,costCentres,0)))","v":true}]
[500201,"School of Business - Research",null,0,0,209999,"N",{"$f":"NOT(ISERROR(MATCH(A352,costCentres,0)))","v":true}]
[500202,"School of Business - Service",null,0,0,209999,"N",{"$f":"NOT(ISERROR(MATCH(A353,costCentres,0)))","v":true}]
[500250,"City Studio",null,0,0,209999,"N",{"$f":"NOT(ISERROR(MATCH(A354,costCentres,0)))","v":true}]
[510000,"MBA",null,0,200001,209912,"N",{"$f":"NOT(ISERROR(MATCH(A355,costCentres,0)))","v":true}]
[510050,"MBA - On Campus",null,0,0,209999,"N",{"$f":"NOT(ISERROR(MATCH(A356,costCentres,0)))","v":true}]
[510500,"Doctor of Business Administration",null,0,0,209999,"N",{"$f":"NOT(ISERROR(MATCH(A357,costCentres,0)))","v":true}]
[519009,"MA in Environment and Management (MEM) - Offshore",null,0,0,209999,"N",{"$f":"NOT(ISERROR(MATCH(A358,costCentres,0)))","v":true}]
[519011,"Jinhua College of Profession and Technology",null,0,0,209999,"N",{"$f":"NOT(ISERROR(MATCH(A359,costCentres,0)))","v":true}]
[530000,"BCom - On Campus",null,0,200001,209912,"N",{"$f":"NOT(ISERROR(MATCH(A360,costCentres,0)))","v":true}]
[530003,"BCom - Blended",null,0,0,209999,"N",{"$f":"NOT(ISERROR(MATCH(A361,costCentres,0)))","v":true}]
[530005,"SoB Case Competition Competing Team",null,0,0,209999,"N",{"$f":"NOT(ISERROR(MATCH(A362,costCentres,0)))","v":true}]
[530006,"RRU Design Thinking Challenge",null,0,0,209999,"N",{"$f":"NOT(ISERROR(MATCH(A363,costCentres,0)))","v":true}]
[540500,"Eric C. Douglass Ctre for Entrepreneurial Studies Fund",null,0,0,209999,"N",{"$f":"NOT(ISERROR(MATCH(A364,costCentres,0)))","v":true}]
[550000,"Master of Global Management",null,0,0,209999,"N",{"$f":"NOT(ISERROR(MATCH(A365,costCentres,0)))","v":true}]
[550100,"Master of Global Management - Blended",null,0,0,209999,"N",{"$f":"NOT(ISERROR(MATCH(A366,costCentres,0)))","v":true}]
[550200,"Graduate Certificate in Financial Analysis",null,0,0,209999,"N",{"$f":"NOT(ISERROR(MATCH(A367,costCentres,0)))","v":true}]
[570000,"Bachelors of Business Administration",null,0,0,209999,"N",{"$f":"NOT(ISERROR(MATCH(A368,costCentres,0)))","v":true}]
[570100,"Bachelors of Business Administration Year 2",null,0,0,209999,"N",{"$f":"NOT(ISERROR(MATCH(A369,costCentres,0)))","v":true}]
[580100,"MA Exec & Org Coaching and GC Adv Coaching Practices",null,0,0,209999,"N",{"$f":"NOT(ISERROR(MATCH(A370,costCentres,0)))","v":true}]
[580200,"GC: Organization Design & Development",null,0,0,209999,"N",{"$f":"NOT(ISERROR(MATCH(A371,costCentres,0)))","v":true}]
[580300,"GC: Workplace Innovation",null,0,0,209999,"N",{"$f":"NOT(ISERROR(MATCH(A372,costCentres,0)))","v":true}]
[580400,"GC: Change Management",null,0,0,209999,"N",{"$f":"NOT(ISERROR(MATCH(A373,costCentres,0)))","v":true}]
[580500,"GC: Corporate Social Innovation",null,0,0,209999,"N",{"$f":"NOT(ISERROR(MATCH(A374,costCentres,0)))","v":true}]
[580600,"GC: Management and Leadership",null,0,0,209999,"N",{"$f":"NOT(ISERROR(MATCH(A375,costCentres,0)))","v":true}]
[580700,"Project Management and Organizational Leadership - DIP",null,0,0,209999,"N",{"$f":"NOT(ISERROR(MATCH(A376,costCentres,0)))","v":true}]
[580800,"GC: Financing Social Impact",null,0,0,209999,"N",{"$f":"NOT(ISERROR(MATCH(A377,costCentres,0)))","v":true}]
[580900,"GC: Indigenous Economic Development",null,0,0,209999,"N",{"$f":"NOT(ISERROR(MATCH(A378,costCentres,0)))","v":true}]
[600012,"MA & Cert Intercultural & International Communication",null,0,0,209999,"N",{"$f":"NOT(ISERROR(MATCH(A379,costCentres,0)))","v":true}]
[600020,"MAIIC - On Campus",null,0,0,209999,"N",{"$f":"NOT(ISERROR(MATCH(A380,costCentres,0)))","v":true}]
[610000,"MA Leadership",null,0,200001,209912,"N",{"$f":"NOT(ISERROR(MATCH(A381,costCentres,0)))","v":true}]
[610008,"MA & Dip in Education Leadership and Management",null,0,0,209999,"N",{"$f":"NOT(ISERROR(MATCH(A382,costCentres,0)))","v":true}]
[610009,"MA in Education Leadership and Management - Offshore",null,0,0,209999,"N",{"$f":"NOT(ISERROR(MATCH(A383,costCentres,0)))","v":true}]
[610010,"BA in Professional Communication - Blended",null,0,0,209999,"N",{"$f":"NOT(ISERROR(MATCH(A384,costCentres,0)))","v":true}]
[610011,"MA in Professional Communication",null,0,0,209999,"N",{"$f":"NOT(ISERROR(MATCH(A385,costCentres,0)))","v":true}]
[610012,"BA in Professional Communication - On Campus",null,0,0,209999,"N",{"$f":"NOT(ISERROR(MATCH(A386,costCentres,0)))","v":true}]
[610013,"GC: Instructional Design",null,0,0,209999,"N",{"$f":"NOT(ISERROR(MATCH(A387,costCentres,0)))","v":true}]
[610015,"GC: Online Learning Facilitation",null,0,0,209999,"N",{"$f":"NOT(ISERROR(MATCH(A388,costCentres,0)))","v":true}]
[610016,"MA in Education Leadership and Management - MLES",null,0,0,209999,"N",{"$f":"NOT(ISERROR(MATCH(A389,costCentres,0)))","v":true}]
[610020,"School of Communication & Culture - Management",null,0,0,209999,"N",{"$f":"NOT(ISERROR(MATCH(A390,costCentres,0)))","v":true}]
[610021,"School of Communication & Culture - Research",null,0,0,209999,"N",{"$f":"NOT(ISERROR(MATCH(A391,costCentres,0)))","v":true}]
[610022,"School of Communication & Culture - Service",null,0,0,209999,"N",{"$f":"NOT(ISERROR(MATCH(A392,costCentres,0)))","v":true}]
[610025,"GC: Intercultural Communication and Leadership",null,0,0,209999,"N",{"$f":"NOT(ISERROR(MATCH(A393,costCentres,0)))","v":true}]
[620045,"MA Leadership - Health",null,0,0,209999,"N",{"$f":"NOT(ISERROR(MATCH(A394,costCentres,0)))","v":true}]
[620500,"School of Leadership Studies - Management",null,0,0,209999,"N",{"$f":"NOT(ISERROR(MATCH(A395,costCentres,0)))","v":true}]
[620502,"School of Leadership - Research",null,0,0,209999,"N",{"$f":"NOT(ISERROR(MATCH(A396,costCentres,0)))","v":true}]
[620503,"School of Leadership - Service",null,0,0,209999,"N",{"$f":"NOT(ISERROR(MATCH(A397,costCentres,0)))","v":true}]
[620510,"MA, Cert & Dip Global Leadership - Blended",null,0,0,209999,"N",{"$f":"NOT(ISERROR(MATCH(A398,costCentres,0)))","v":true}]
[620520,"MA, Cert & Dip Global Leadership - On Campus",null,0,0,209999,"N",{"$f":"NOT(ISERROR(MATCH(A399,costCentres,0)))","v":true}]
[640000,"School of Education and Technology - Management",null,0,0,209999,"N",{"$f":"NOT(ISERROR(MATCH(A400,costCentres,0)))","v":true}]
[640001,"School of Educ and Technology - Research",null,0,0,209999,"N",{"$f":"NOT(ISERROR(MATCH(A401,costCentres,0)))","v":true}]
[640002,"School of Education & Technology - Service",null,0,0,209999,"N",{"$f":"NOT(ISERROR(MATCH(A402,costCentres,0)))","v":true}]
[640100,"MA and GC's - Higher Education Admin and Leadership",null,0,0,209999,"N",{"$f":"NOT(ISERROR(MATCH(A403,costCentres,0)))","v":true}]
[640200,"DIP: Technology-Enhanced Learning and Design",null,0,0,209999,"N",{"$f":"NOT(ISERROR(MATCH(A404,costCentres,0)))","v":true}]
[700000,"School of Humanitarian Studies - Management",null,0,200001,209912,"N",{"$f":"NOT(ISERROR(MATCH(A405,costCentres,0)))","v":true}]
[700001,"School of Humanitarian Studies - Research",null,0,0,209999,"N",{"$f":"NOT(ISERROR(MATCH(A406,costCentres,0)))","v":true}]
[700002,"School of Humanitarian Studies - Service",null,0,0,209999,"N",{"$f":"NOT(ISERROR(MATCH(A407,costCentres,0)))","v":true}]
[700040,"BA in Inter-Disciplinary Studies",null,0,0,209999,"N",{"$f":"NOT(ISERROR(MATCH(A408,costCentres,0)))","v":true}]
[700050,"MA in Inter-Disciplinary Studies",null,0,0,209999,"N",{"$f":"NOT(ISERROR(MATCH(A409,costCentres,0)))","v":true}]
[705000,"MA and DIP Human Security & Peacebuilding",null,0,0,209999,"N",{"$f":"NOT(ISERROR(MATCH(A410,costCentres,0)))","v":true}]
[706000,"MA and DIP Disaster and Emergency Management",null,0,0,209999,"N",{"$f":"NOT(ISERROR(MATCH(A411,costCentres,0)))","v":true}]
[707000,"MA and Dip Climate Action Leadership",null,0,0,209999,"N",{"$f":"NOT(ISERROR(MATCH(A412,costCentres,0)))","v":true}]
[708000,"GC: Child Protection to Wellbeing",null,0,0,209999,"N",{"$f":"NOT(ISERROR(MATCH(A413,costCentres,0)))","v":true}]
[710000,"MA and DIP Conflict Analysis & Management",null,0,200001,209912,"N",{"$f":"NOT(ISERROR(MATCH(A414,costCentres,0)))","v":true}]
[710100,"Insight Summit Conference",null,0,0,209999,"N",{"$f":"NOT(ISERROR(MATCH(A415,costCentres,0)))","v":true}]
[720000,"BA Justice Studies - Blended",null,0,0,209999,"N",{"$f":"NOT(ISERROR(MATCH(A416,costCentres,0)))","v":true}]
[720100,"BA Justice Studies - OnCampus",null,0,0,209999,"N",{"$f":"NOT(ISERROR(MATCH(A417,costCentres,0)))","v":true}]
[720200,"MA and DIP Justice Studies",null,0,0,209999,"N",{"$f":"NOT(ISERROR(MATCH(A418,costCentres,0)))","v":true}]
[750000,"FSAS - Management",null,0,0,209999,"N",{"$f":"NOT(ISERROR(MATCH(A419,costCentres,0)))","v":true}]
[750100,"Doctor of Social Sciences",null,0,0,209999,"N",{"$f":"NOT(ISERROR(MATCH(A420,costCentres,0)))","v":true}]
[750150,"CoIS - Management",null,0,0,209999,"N",{"$f":"NOT(ISERROR(MATCH(A421,costCentres,0)))","v":true}]
[750151,"COIS - Research",null,0,0,209999,"N",{"$f":"NOT(ISERROR(MATCH(A422,costCentres,0)))","v":true}]
[750152,"COIS - Service",null,0,0,209999,"N",{"$f":"NOT(ISERROR(MATCH(A423,costCentres,0)))","v":true}]
[750155,"Interdisciplinary UG Year One",null,0,0,209999,"N",{"$f":"NOT(ISERROR(MATCH(A424,costCentres,0)))","v":true}]
[760100,"Thesis and Dissertation Support",null,0,0,209999,"N",{"$f":"NOT(ISERROR(MATCH(A425,costCentres,0)))","v":true}]
[800000,"Provincial Operating Grant",null,0,200001,209912,"N",{"$f":"NOT(ISERROR(MATCH(A426,costCentres,0)))","v":true}]
[800005,"Program Quality -Operations",null,0,0,209999,"N",{"$f":"NOT(ISERROR(MATCH(A427,costCentres,0)))","v":true}]
[800008,"5 YR External Program Reviews",null,0,0,209999,"N",{"$f":"NOT(ISERROR(MATCH(A428,costCentres,0)))","v":true}]
[800021,"FSAS Program Quality",null,0,0,209999,"N",{"$f":"NOT(ISERROR(MATCH(A429,costCentres,0)))","v":true}]
[800071,"PCS Program Quality",null,0,0,209999,"N",{"$f":"NOT(ISERROR(MATCH(A430,costCentres,0)))","v":true}]
[800072,"FoM Program Quality",null,0,0,209999,"N",{"$f":"NOT(ISERROR(MATCH(A431,costCentres,0)))","v":true}]
[800100,"Planning Allowances",null,0,0,209999,"N",{"$f":"NOT(ISERROR(MATCH(A432,costCentres,0)))","v":true}]
[800105,"Vacancy Allowances",null,0,0,209999,"N",{"$f":"NOT(ISERROR(MATCH(A433,costCentres,0)))","v":true}]
[800150,"Academic Program Allowances",null,0,0,209999,"N",{"$f":"NOT(ISERROR(MATCH(A434,costCentres,0)))","v":true}]
[800200,"Strategic Operating Investments",null,0,0,209999,"N",{"$f":"NOT(ISERROR(MATCH(A435,costCentres,0)))","v":true}]
[800211,"Westshore Campus Operations (fiscal 2021 onward)",null,0,0,209999,"N",{"$f":"NOT(ISERROR(MATCH(A436,costCentres,0)))","v":true}]
[800250,"Westshore Rental Operations",null,0,0,209999,"N",{"$f":"NOT(ISERROR(MATCH(A437,costCentres,0)))","v":true}]
[900200,"GC: Human Resources",null,0,0,209999,"N",{"$f":"NOT(ISERROR(MATCH(A438,costCentres,0)))","v":true}]
[900201,"GC: Project Management",null,0,0,209999,"N",{"$f":"NOT(ISERROR(MATCH(A439,costCentres,0)))","v":true}]
[900202,"GC: Executive Coaching",null,0,0,209999,"N",{"$f":"NOT(ISERROR(MATCH(A440,costCentres,0)))","v":true}]
[900204,"GC: Professional Communication Management",null,0,0,209999,"N",{"$f":"NOT(ISERROR(MATCH(A441,costCentres,0)))","v":true}]
[900228,"GC: Sustainable Community Development",null,0,0,209999,"N",{"$f":"NOT(ISERROR(MATCH(A442,costCentres,0)))","v":true}]
[900229,"GC: Leadership and Management",null,0,0,209999,"N",{"$f":"NOT(ISERROR(MATCH(A443,costCentres,0)))","v":true}]
[900233,"MA Leadership Executive with VBL",null,0,0,209999,"N",{"$f":"NOT(ISERROR(MATCH(A444,costCentres,0)))","v":true}]
[900272,"P&CS: First Nations Technology Council",null,0,0,209999,"N",{"$f":"NOT(ISERROR(MATCH(A445,costCentres,0)))","v":true}]
[900290,"PCS: Future Skills, Project Connect",null,0,0,209999,"N",{"$f":"NOT(ISERROR(MATCH(A446,costCentres,0)))","v":true}]
[900300,"P&CS:  English for Academic Purposes",null,0,0,209999,"N",{"$f":"NOT(ISERROR(MATCH(A447,costCentres,0)))","v":true}]
[900410,"General Studies Courses - FOM",null,0,0,209999,"N",{"$f":"NOT(ISERROR(MATCH(A448,costCentres,0)))","v":true}]
[900420,"General Studies Courses - FSAS",null,0,0,209999,"N",{"$f":"NOT(ISERROR(MATCH(A449,costCentres,0)))","v":true}]
[900430,"General Studies Courses - OIS",null,0,0,209999,"N",{"$f":"NOT(ISERROR(MATCH(A450,costCentres,0)))","v":true}]
[900440,"General Studies Courses - P&CS",null,0,0,209999,"N",{"$f":"NOT(ISERROR(MATCH(A451,costCentres,0)))","v":true}]
[950000,"Professional and Continuing Studies, AVP - Mgmt",null,0,0,209999,"N",{"$f":"NOT(ISERROR(MATCH(A452,costCentres,0)))","v":true}]
[960000,"Professional and Continuing Studies - Programs Mgmt",null,0,0,209999,"N",{"$f":"NOT(ISERROR(MATCH(A453,costCentres,0)))","v":true}]
[960100,"PSC Grants",null,0,0,209999,"N",{"$f":"NOT(ISERROR(MATCH(A454,costCentres,0)))","v":true}]
[960300,"DCL - Custom Programs",null,0,0,209999,"N",{"$f":"NOT(ISERROR(MATCH(A455,costCentres,0)))","v":true}]
[960500,"DCL - Package Programs",null,0,0,209999,"N",{"$f":"NOT(ISERROR(MATCH(A456,costCentres,0)))","v":true}]
[970000,"Global Learning and Language Centre - Mgmt",null,0,0,209999,"N",{"$f":"NOT(ISERROR(MATCH(A457,costCentres,0)))","v":true}]
[970300,"International Custom Learning - Custom Programs",null,0,0,209999,"N",{"$f":"NOT(ISERROR(MATCH(A458,costCentres,0)))","v":true}]
[970500,"GLLC Open Enrolment Package Programs",null,0,0,209999,"N",{"$f":"NOT(ISERROR(MATCH(A459,costCentres,0)))","v":true}]
[970700,"GD: Project Mgmt & Org Leadership - Royal Bridge",null,0,0,209999,"N",{"$f":"NOT(ISERROR(MATCH(A460,costCentres,0)))","v":true}]
[970800,"MAIIC - RoyalBridge College",null,0,0,209999,"N",{"$f":"NOT(ISERROR(MATCH(A461,costCentres,0)))","v":true}]